Workbook

Sheet Auswertung_Segmente (hidden)
A3: Maximum von förderfähig brutto | G3: Maximum von förderfähig brutto
A4: Info Segment | B4: E-Fahrzeug | C4: Ergebnis | G4: Info Segment | H4: E-Fahrzeug | I4: Ergebnis
A5: Kleinwagen | B5: BMW i3 (120Ah) | C5: 8500 | G5: Kleinwagen | H5: Renault Zoe Life (41 kWh) | I5: 18610
B6: BMW i3s (120Ah) | C6: 7250 | G6: Kompaktklasse | H6: Opel Ampera-E Plus | I6: 18375
B7: Mercedes Benz smart forfour electric drive (alle Versionen) | C7: 10775 | G7: Mini | H7: Volkswagen e-load up | I7: 12845
B8: Renault Zoe Life (22 kWh) | C8: 14410 | G8: Mittelklasse | H8: Kia Optima 2.0 GDI Plug-in Hybrid (Sportswagon) | I8: 12050
B9: Renault Zoe Life (22 kWh), Batterie zur Miete | C9: 6410 | G9: Obere Mittelklasse | H9: Volvo V90 T8 TWIN ENGINE AWD | I9: 12700
B10: Renault Zoe Life (41 kWh) | C10: 18610 | G10: Utility (N1) | H10: Volkswagen e-Crafter | I10: 48338
B11: Renault Zoe Life (41 kWh), Batterie zur Miete | C11: 10610 | G11: Geländewagen / SUV | H11: Jaguar I-Pace | I11: 21490
A12: Kleinwagen Ergebnis | C12: 18610 | G12: Oberklasse | H12: Tesla Model S Maximal-Reichweite | I12: 18080
A13: Kompaktklasse | B13: BMW 225xe iPerformance Active Tourer
B14: Hyundai IONIQ Elektro | C14: 10650
B15: Hyundai IONIQ Plug-in-Hybrid | C15: 7250
B16: Kia e-Niro 39,2 kWh | C16: 11200
B17: Kia e-Niro 64 kWh | C17: 15000
B18: Kia Niro Plug-in Hybrid | C18: 9660
B19: Nissan Leaf ZE1 (40 kwh) | C19: 18310
B20: Opel Ampera-E Plus | C20: 18375
B21: Toyota Prius Plug-In Hybrid (alle Ausstattungen) | C21: 13760
B22: Volkswagen e-Golf | C22: 12385
B23: Volkswagen Golf GTE (PHEV) | C23: 10630
A24: Kompaktklasse Ergebnis | C24: 18375
A25: Leichtfahrzeug | B25: Renault Twizzy 45 - Life, Intens, Cargo (5PS) | C25: 4000
B26: Renault Twizzy Life - Intens, Cargo (18PS) | C26: 4000
A27: Leichtfahrzeug Ergebnis | C27: 4000
A28: Mini | B28: Citroën C-Zero | C28: 11100
B29: Citroën E-Mehari | C29: 9780
B30: Ego-Life 20 | C30: 5910
B31: Ego-Life 40 | C31: 7410
B32: Ego-Life 60 | C32: 9910
B33: Mercedes Benz smart fortwo ED (alle Versionen) | C33: 10325
B34: Peugeot iOn | C34: 9350
B35: Volkswagen e-load up | C35: 12845
B36: Volkswagen e-up | C36: 11140
A37: Mini Ergebnis | C37: 12845
A38: Mini-Van | B38: Kia Soul EV | C38: 12250
A39: Mini-Van Ergebnis | C39: 12250
A40: Mittelklasse | B40: Tesla Model 3 75D Long Range / Performance | C40: 11630
B41: Volvo V60 T8 TWIN ENGINE AWD | C41: 10600
B42: Kia Optima 2.0 GDI Plug-in Hybrid | C42: 12050
B43: Volkswagen Passat GTE (PHEV) | C43: 11905
A44: Mittelklasse Ergebnis | C44: 12050
A45: Obere Mittelklasse | B45: BMW 530e iPerformance | C45: 2900
B46: Volvo S90 T8 TWIN ENGINE AWD | C46: 12700
B47: Volvo V90 T8 TWIN ENGINE AWD | C47: 12700
B48: Mercedes Benz E 300 e | C48: 2023
B49: Mercedes Benz E 300 de | C49: 3201
A50: Obere Mittelklasse Ergebnis | C50: 12700
A51: Oberklasse | B51: Tesla Model S Standart-Reichweite | C51: 13080
B52: Tesla Model S Maximal-Reichweite | C52: 18080
B53: Tesla Model S Standart-Reichweite (Einsatz als Taxi) | C53: 30161
B54: Tesla Model S Maximal-Reichweite (Einsatz als Taxi) | C54: 21471
B55: BMW 745e, Le (ohne xDrive) | C55: 12500
B56: BMW 745e, Le xDrive | C56: 0
A57: Oberklasse Ergebnis | C57: 30161
A58: Sportwagen | B58: BMW i8 Roadster | C58: 2741
B59: BMW i8 Coupé | C59: 10021
A60: Sportwagen Ergebnis | C60: 10021
A61: Utility (N1) | B61: Mercedes Benz eVito (alle Varianten) | C61: 31535
B62: Nissan e-NV200 Evalia 5-Sitzer | C62: 20143
B63: Nissan e-NV200 Evalia 7-Sitzer | C63: 19010
B64: Nissan e-NV200 Kasten | C64: 15839
B65: Peugeot Partner electrique (L1) | C65: 5892
B66: Peugeot Partner electrique (L2) | C66: 3880
B67: Piaggio Porter Elektro (alle Versionen) | C67: 12761
B68: Renault Kangoo Maxi Z.E. 33 2-Sitzer | C68: 14899
B69: Renault Kangoo Maxi Z.E. 33 2-Sitzer, Batterie zur Miete | C69: 4070
B70: Renault Kangoo Maxi Z.E. 33 5-Sitzer | C70: 14661
B71: Renault Kangoo Maxi Z.E. 33 5-Sitzer, Batterie zur Miete | C71: 3832
B72: Renault Kangoo Z.E. 33 2-Sitzer | C72: 18576
B73: Renault Kangoo Z.E. 33 2-Sitzer, Batterie zur Miete | C73: 7747
B74: Renault Kangoo Z.E. 33 Doppelkabine | C74: 14843
B75: Renault Kangoo Z.E. 33 Doppelkabine, Batterie zur Miete | C75: 4014
B76: Renault Master Z.E. Kasten (alle Versionen) | C76: 38604
B77: Renault Master Z.E. Plattform-FG (alle Versionen) | C77: 40317
B78: SAIC MAXUS EV 80 (Cargo Mobile) | C78: 30000
B79: Streetscooter Work 20 (alle Versionen) | C79: 24514
B80: Streetscooter Work 40 (alle Versionen) | C80: 30464
B81: Streetscooter Work L 40 (alle Versionen) | C81: 26370
B82: Streetscooter Work XL (alle Versionen) | C82: 40282
B83: Volkswagen e-Crafter | C83: 48338
A84: Utility (N1) Ergebnis | C84: 48338
A85: (Leer) | B85: Porsche Cayenne S E-Hybrid | C85: 0
B86: Porsche Panamera 4 E-Hybrid (alle Versionen) | C86: 0
B87: Porsche Panamera Turbo S E-Hybrid (alle Versionen) | C87: 0
A88: (Leer) Ergebnis | C88: 0
A89: Geländewagen / SUV | B89: Audi e-tron 55 Quattro | C89: 18850
B90: Hyundai Kona Elektro (alle Versionen) | C90: 14000
B91: Jaguar I-Pace | C91: 21490
B92: Land Rover Range Rover P400e Plug-in Hybrid
B93: Land Rover Range Rover Sport P400e Plug-in Hybrid
B94: Mitsubishi PLUG-IN HYBRID OUTLANDER | C94: 12100
B95: Volvo XC 60 T8 TWIN ENGINE
B96: Volvo XC 90 T8 TWIN ENGINE AWD
B97: Tesla Model X Maximal-Reichweite | C97: 12300
A98: Geländewagen / SUV Ergebnis | C98: 21490
A99: Gesamtergebnis | C99: 48338

Sheet Fahrzeuge
A1: Antragsteller ist vorsteuerabzugsberechtigt [Auswahlbox]: | F1: ja | G1: nein | H1: Stand: 09.09.2021 | L1: FKZ
H2: korrigiert: 23.06.2021 | L2: 03EMIS1
A3: Hinweise: | H3: ergänzt: 01.03.2022
A4: Mit dieser Tabelle können Sie die förderfähigen Ausgaben ermitteln, die in das AZA-Formular in easyOnline eingegeben werden müssen.
A5: =IF(Fahrzeuge!C1="","1. Wählen Sie zunächst aus, ob Sie zum Vorsteuerabzug berechtigt sind!","") -> 1. Wählen Sie zunächst aus, ob Sie zum Vorsteuerabzug berechtigt sind!
A6: 2. Wählen Sie in der Liste unten die gewünschten Fahrzeuge(Auswahlbox) und die entsprechende Anzahl aus. Geben sie die zu erwartende durchschnittliche Jahresfahrleistung für jedes Modell ein (bei PHEV automatisch gedeckelt)
A7: 3. Für Ladeinfrastruktur sowie LKW, Busse und Sonderfahrzeuge wählen Sie bitte die entsprechenden Registerkarten.
A8: 4. Speichern sie die ausgefüllten Arbeitsblätter (außer 'Vorlage für AZA') als PDF und fügen Sie sie dem Antrag bei.
A9: 5. Grün unterlegte Felder sind Eingabefelder.
A10: Die Registerkarte 'Vorlage für AZA' stellt Ihre Eingaben so dar, wie sie in das easyOnline-Formular eingetragen werden müssen.
A12: Pos. | B12: Typ E-Fahrzeug [Auswahlbox] | C12: Fahrzeugsegment nach Kraftfahrt-Bundesamt | D12: =IF(Fahrzeuge!$C$1="nein","Bruttopreis E-Fahrzeug",IF(Fahrzeuge!$C$1="ja","Nettopreis E-Fahrzeug","Bitte wählen sie aus, ob sie zum Vorsteuerabzug berechtigt sind!")) -> Bitte wählen sie aus, ob sie zum Vorsteuerabzug berechtigt sind! | E12: Typ Referenzfahrzeug | F12: =IF(Fahrzeuge!$C$1="nein","Bruttopreis Referenzfahrzeug",IF(Fahrzeuge!$C$1="ja","Nettopreis Referenzfahrzeug","Bitte wählen sie aus, ob sie zum Vorsteuerabzug berechtigt sind!")) -> Bitte wählen sie aus, ob sie zum Vorsteuerabzug berechtigt sind! | G12: =IF($C$1="nein","Förderfähige Ausgaben pro Fahrzeug (brutto)",IF($C$1="ja","Förderfähige Ausgaben pro Fahrzeug (netto)","Bitte wählen sie aus, ob sie zum Vorsteuerabzug berechtigt sind!")) -> Bitte wählen sie aus, ob sie zum Vorsteuerabzug berechtigt sind! | H12: Anzahl zu beschaffender Fahrzeuge des Typs | I12: erwartete durchschnittliche Jahres- Fahrleistung in km | J12: anerkannte durchschnittliche elektrische Jahres-Fahrleistung in km | K12: Förderfähige Ausgaben | L12: Korrekturfeld PtJ | AQ12: Kommentar | AR12: E-Fahrzeug | AS12: PHEV | AT12: E-Listenpreis netto | AU12: E-Listenpreis brutto | AV12: Vergleichsfahrzeug | AW12: Listenpreis netto | AX12: Listenpreis brutto | AY12: förderfähig netto | AZ12: förderfähig brutto | BA12: Info Segment | BB12: Fahrzeugklasse Abkürzung | BC12: ergänzt am:
A13: 1 | C13: =IF(B13>0,CONCATENATE(VLOOKUP(B13,N$37:X$262,10,0)," (",VLOOKUP(B13,N$37:X$262,11,0),")"),"") ->  | D13: =IF($B13>0,IF(Fahrzeuge!$C$1="nein",VLOOKUP($B13,$N$37:$V$262,4,0),IF(Fahrzeuge!$C$1="ja",VLOOKUP($B13,$N$37:$V$262,3,0),"Bitte wählen sie aus, ob sie zum Vorsteuerabzug berechtigt sind!")),"") ->  | E13: =IF($B13>0,VLOOKUP($B13,$N$37:$V$262,5,0),"") ->  | F13: =IF($B13>0,IF(Fahrzeuge!$C$1="nein",VLOOKUP($B13,$N$37:$V$262,7,0),IF(Fahrzeuge!$C$1="ja",VLOOKUP($B13,$N$37:$V$262,6,0),"Bitte wählen sie aus, ob sie zum Vorsteuerabzug berechtigt sind!")),"") ->  | G13: =IF(B13>0,IF($C$1="nein",VLOOKUP($B13,$N$37:$V$262,9,0),IF($C$1="ja",VLOOKUP($B13,$N$37:$V$262,8,0),"Bitte wählen sie aus, ob sie zum Vorsteuerabzug berechtigt sind!")),"") ->  | J13: =IF($B13>0,IF(VLOOKUP($B13,$N$37:$V$262,2,FALSE)="x",IF(I13>10000,10000,I13),I13),"") ->  | K13: =IF(B13>0,G13*H13,"") ->  | AR13: Aixam eCity | AT13: =ROUND(AU13/1.19,2) -> 12092.44 | AU13: 14390 | AV13: Mercedes Benz smart 52 kW | AW13: =ROUND(AX13/1.19,2) -> 9382.35 | AX13: 11165 | AY13: =ROUND(AT13-AW13,0) -> 2710 | AZ13: =ROUND(AU13-AX13,0) -> 3225 | BA13: Leichtfahrzeug | BB13: LFZ | BC13: 43913
A14: =A13+1 -> 2 | D14: =IF($B14>0,IF(Fahrzeuge!$C$1="nein",VLOOKUP($B14,$N$37:$V$262,4,0),IF(Fahrzeuge!$C$1="ja",VLOOKUP($B14,$N$37:$V$262,3,0),"Bitte wählen sie aus, ob sie zum Vorsteuerabzug berechtigt sind!")),"") ->  | F14: =IF($B14>0,IF(Fahrzeuge!$C$1="nein",VLOOKUP($B14,$N$37:$V$262,7,0),IF(Fahrzeuge!$C$1="ja",VLOOKUP($B14,$N$37:$V$262,6,0),"Bitte wählen sie aus, ob sie zum Vorsteuerabzug berechtigt sind!")),"") ->  | AR14: Audi A3 e-tron | AT14: =ROUND(AU14/1.19,2) -> 31848.74 | AU14: 37900 | AV14: Audi A3 Sportback Attraction | AW14: 23949.58 | AX14: 28500 | AY14: 7899 | AZ14: 9400 | BA14: Kompaktklasse | BB14: PKW
A15: =A14+1 -> 3 | D15: =IF($B15>0,IF(Fahrzeuge!$C$1="nein",VLOOKUP($B15,$N$37:$V$262,4,0),IF(Fahrzeuge!$C$1="ja",VLOOKUP($B15,$N$37:$V$262,3,0),"Bitte wählen sie aus, ob sie zum Vorsteuerabzug berechtigt sind!")),"") ->  | F15: =IF($B15>0,IF(Fahrzeuge!$C$1="nein",VLOOKUP($B15,$N$37:$V$262,7,0),IF(Fahrzeuge!$C$1="ja",VLOOKUP($B15,$N$37:$V$262,6,0),"Bitte wählen sie aus, ob sie zum Vorsteuerabzug berechtigt sind!")),"") ->  | AR15: Audi e-tron 50 Quattro | AT15: =ROUND(AU15/1.19,2) -> 58067.23 | AU15: 69100 | AV15: Audi A6 allroad quattro 3.0 TDI 200kW | AW15: 51302.52 | AX15: 61050 | AY15: 6765 | AZ15: 8050 | BA15: Geländewagen / SUV | BB15: PKW | BC15: 43913
A16: =A15+1 -> 4 | D16: =IF($B16>0,IF(Fahrzeuge!$C$1="nein",VLOOKUP($B16,$N$37:$V$262,4,0),IF(Fahrzeuge!$C$1="ja",VLOOKUP($B16,$N$37:$V$262,3,0),"Bitte wählen sie aus, ob sie zum Vorsteuerabzug berechtigt sind!")),"") ->  | F16: =IF($B16>0,IF(Fahrzeuge!$C$1="nein",VLOOKUP($B16,$N$37:$V$262,7,0),IF(Fahrzeuge!$C$1="ja",VLOOKUP($B16,$N$37:$V$262,6,0),"Bitte wählen sie aus, ob sie zum Vorsteuerabzug berechtigt sind!")),"") ->  | AR16: Audi e-tron 55 Quattro | AT16: =ROUND(AU16/1.19,2) -> 67142.86 | AU16: 79900 | AV16: Audi A6 allroad quattro 3.0 TDI 200kW | AW16: 51302.52 | AX16: 61050 | AY16: 15840 | AZ16: 18850 | BA16: Geländewagen / SUV | BB16: PKW
A17: =A16+1 -> 5 | D17: =IF($B17>0,IF(Fahrzeuge!$C$1="nein",VLOOKUP($B17,$N$37:$V$262,4,0),IF(Fahrzeuge!$C$1="ja",VLOOKUP($B17,$N$37:$V$262,3,0),"Bitte wählen sie aus, ob sie zum Vorsteuerabzug berechtigt sind!")),"") ->  | F17: =IF($B17>0,IF(Fahrzeuge!$C$1="nein",VLOOKUP($B17,$N$37:$V$262,7,0),IF(Fahrzeuge!$C$1="ja",VLOOKUP($B17,$N$37:$V$262,6,0),"Bitte wählen sie aus, ob sie zum Vorsteuerabzug berechtigt sind!")),"") ->  | AR17: Audi Q5 TFSI e quattro | AS17: x | AT17: 70101.68 | AU17: 79753.36 | AV17: Audi Q5 sport 45 TFSI quattro | AW17: 45378.15 | AX17: 54000 | AY17: 24724 | AZ17: 25753 | BA17: Geländewagen / SUV | BB17: PKW
A18: =A17+1 -> 6 | D18: =IF($B18>0,IF(Fahrzeuge!$C$1="nein",VLOOKUP($B18,$N$37:$V$262,4,0),IF(Fahrzeuge!$C$1="ja",VLOOKUP($B18,$N$37:$V$262,3,0),"Bitte wählen sie aus, ob sie zum Vorsteuerabzug berechtigt sind!")),"") ->  | F18: =IF($B18>0,IF(Fahrzeuge!$C$1="nein",VLOOKUP($B18,$N$37:$V$262,7,0),IF(Fahrzeuge!$C$1="ja",VLOOKUP($B18,$N$37:$V$262,6,0),"Bitte wählen sie aus, ob sie zum Vorsteuerabzug berechtigt sind!")),"") ->  | AQ18: jetzt 120Ah statt 94Ah | AR18: BMW i3 (42,2 kWh, 37,9 kWh nutzbar) | AT18: 44067.23 | AU18: 50134.46 | AV18: BMW 218 i Active Tourer | AW18: 24789.92 | AX18: 29500 | AY18: 19277 | AZ18: 20634 | BA18: Kleinwagen | BB18: PKW
A19: 7 | D19: =IF($B19>0,IF(Fahrzeuge!$C$1="nein",VLOOKUP($B19,$N$37:$V$262,4,0),IF(Fahrzeuge!$C$1="ja",VLOOKUP($B19,$N$37:$V$262,3,0),"Bitte wählen sie aus, ob sie zum Vorsteuerabzug berechtigt sind!")),"") ->  | F19: =IF($B19>0,IF(Fahrzeuge!$C$1="nein",VLOOKUP($B19,$N$37:$V$262,7,0),IF(Fahrzeuge!$C$1="ja",VLOOKUP($B19,$N$37:$V$262,6,0),"Bitte wählen sie aus, ob sie zum Vorsteuerabzug berechtigt sind!")),"") ->  | AQ19: jetzt 120Ah statt 94Ah | AR19: BMW i3s (42,2 kWh, 37,9 kWh nutzbar) | AT19: 48242.02 | AU19: 54884.04 | AV19: BMW 218 i Active Tourer Sport Line | AW19: 28865.55 | AX19: 34350 | AY19: 19376 | AZ19: 20534 | BA19: Kleinwagen | BB19: PKW
A20: 8 | D20: =IF($B20>0,IF(Fahrzeuge!$C$1="nein",VLOOKUP($B20,$N$37:$V$262,4,0),IF(Fahrzeuge!$C$1="ja",VLOOKUP($B20,$N$37:$V$262,3,0),"Bitte wählen sie aus, ob sie zum Vorsteuerabzug berechtigt sind!")),"") ->  | F20: =IF($B20>0,IF(Fahrzeuge!$C$1="nein",VLOOKUP($B20,$N$37:$V$262,7,0),IF(Fahrzeuge!$C$1="ja",VLOOKUP($B20,$N$37:$V$262,6,0),"Bitte wählen sie aus, ob sie zum Vorsteuerabzug berechtigt sind!")),"") ->  | AQ20: 46g CO2 /km; 40 km e-Reichweite | AR20: BMW i8 Roadster | AS20: x | AT20: =ROUND(AU20/1.19,2) -> 130252.1 | AU20: 155000 | AV20: Porsche 911 Carrera 4S Cabrio | AW20: 127948.74 | AX20: 152259 | AY20: 2303 | AZ20: 2741 | BA20: Sportwagen | BB20: PKW
A21: =A20+1 -> 9 | D21: =IF($B21>0,IF(Fahrzeuge!$C$1="nein",VLOOKUP($B21,$N$37:$V$262,4,0),IF(Fahrzeuge!$C$1="ja",VLOOKUP($B21,$N$37:$V$262,3,0),"Bitte wählen sie aus, ob sie zum Vorsteuerabzug berechtigt sind!")),"") ->  | F21: =IF($B21>0,IF(Fahrzeuge!$C$1="nein",VLOOKUP($B21,$N$37:$V$262,7,0),IF(Fahrzeuge!$C$1="ja",VLOOKUP($B21,$N$37:$V$262,6,0),"Bitte wählen sie aus, ob sie zum Vorsteuerabzug berechtigt sind!")),"") ->  | AQ21: 42g CO2 /km; 40 km e-Reichweite | AR21: BMW i8 Coupé | AS21: x | AT21: =ROUND(AU21/1.19,2) -> 115966.39 | AU21: 138000 | AV21: Porsche 911 Carrera 4S | AW21: 107545.38 | AX21: 127979 | AY21: 8421 | AZ21: 10021 | BA21: Sportwagen | BB21: PKW
A22: 10 | D22: =IF($B22>0,IF(Fahrzeuge!$C$1="nein",VLOOKUP($B22,$N$37:$V$262,4,0),IF(Fahrzeuge!$C$1="ja",VLOOKUP($B22,$N$37:$V$262,3,0),"Bitte wählen sie aus, ob sie zum Vorsteuerabzug berechtigt sind!")),"") ->  | F22: =IF($B22>0,IF(Fahrzeuge!$C$1="nein",VLOOKUP($B22,$N$37:$V$262,7,0),IF(Fahrzeuge!$C$1="ja",VLOOKUP($B22,$N$37:$V$262,6,0),"Bitte wählen sie aus, ob sie zum Vorsteuerabzug berechtigt sind!")),"") ->  | AQ22: 52g CO2 /km; 41km e-Reichweite | AR22: BMW 225xe iPerformance Active Tourer (8,8 kWh) | AS22: x | AT22: 45980.67 | AU22: 52311.34 | AV22: BMW 220i Active Tourer | AW22: 40704.2 | AX22: 46308.4 | AY22: 5276 | AZ22: 6003 | BA22: Kompaktklasse | BB22: PKW
A23: 11 | D23: =IF($B23>0,IF(Fahrzeuge!$C$1="nein",VLOOKUP($B23,$N$37:$V$262,4,0),IF(Fahrzeuge!$C$1="ja",VLOOKUP($B23,$N$37:$V$262,3,0),"Bitte wählen sie aus, ob sie zum Vorsteuerabzug berechtigt sind!")),"") ->  | F23: =IF($B23>0,IF(Fahrzeuge!$C$1="nein",VLOOKUP($B23,$N$37:$V$262,7,0),IF(Fahrzeuge!$C$1="ja",VLOOKUP($B23,$N$37:$V$262,6,0),"Bitte wählen sie aus, ob sie zum Vorsteuerabzug berechtigt sind!")),"") ->  | AQ23: NEFZ Zyklus | AR23: BMW 330e Advantage (10,8 kWh) | AS23: x | AT23: 59780.67 | AU23: 68011.34 | AV23: BMW 330i Advantage | AW23: 51894.96 | AX23: 59039.92 | AY23: =ROUND(AT23-AW23,0) -> 7886 | AZ23: 8971 | BA23: Mittelklasse | BB23: PKW
A24: 12 | D24: =IF($B24>0,IF(Fahrzeuge!$C$1="nein",VLOOKUP($B24,$N$37:$V$262,4,0),IF(Fahrzeuge!$C$1="ja",VLOOKUP($B24,$N$37:$V$262,3,0),"Bitte wählen sie aus, ob sie zum Vorsteuerabzug berechtigt sind!")),"") ->  | F24: =IF($B24>0,IF(Fahrzeuge!$C$1="nein",VLOOKUP($B24,$N$37:$V$262,7,0),IF(Fahrzeuge!$C$1="ja",VLOOKUP($B24,$N$37:$V$262,6,0),"Bitte wählen sie aus, ob sie zum Vorsteuerabzug berechtigt sind!")),"") ->  | AQ24: 47g CO2 /km; 48 km e-Reichweite | AR24: BMW 530e iPerformance | AS24: x | AT24: =ROUND(AU24/1.19,2) -> 47058.82 | AU24: 56000 | AV24: BMW 530i | AW24: =ROUND(AX24/1.19,2) -> 44621.85 | AX24: 53100 | AY24: 2437 | AZ24: 2900 | BA24: Obere Mittelklasse | BB24: PKW
A25: =A24+1 -> 13 | D25: =IF($B25>0,IF(Fahrzeuge!$C$1="nein",VLOOKUP($B25,$N$37:$V$262,4,0),IF(Fahrzeuge!$C$1="ja",VLOOKUP($B25,$N$37:$V$262,3,0),"Bitte wählen sie aus, ob sie zum Vorsteuerabzug berechtigt sind!")),"") ->  | F25: =IF($B25>0,IF(Fahrzeuge!$C$1="nein",VLOOKUP($B25,$N$37:$V$262,7,0),IF(Fahrzeuge!$C$1="ja",VLOOKUP($B25,$N$37:$V$262,6,0),"Bitte wählen sie aus, ob sie zum Vorsteuerabzug berechtigt sind!")),"") ->  | AQ25: 49g CO2 /kmBMW 740i nicht mehr verfügbar(?) | AR25: BMW 745e, Le (ohne xDrive) | AS25: x | AT25: =ROUND(AU25/1.19,2) -> 89411.76 | AU25: 106400 | AV25: BMW 730 Ld | AW25: 78907.56 | AX25: 93900 | AY25: 10504 | AZ25: 12500 | BA25: Oberklasse | BB25: PKW
A26: 14 | D26: =IF($B26>0,IF(Fahrzeuge!$C$1="nein",VLOOKUP($B26,$N$37:$V$262,4,0),IF(Fahrzeuge!$C$1="ja",VLOOKUP($B26,$N$37:$V$262,3,0),"Bitte wählen sie aus, ob sie zum Vorsteuerabzug berechtigt sind!")),"") ->  | F26: =IF($B26>0,IF(Fahrzeuge!$C$1="nein",VLOOKUP($B26,$N$37:$V$262,7,0),IF(Fahrzeuge!$C$1="ja",VLOOKUP($B26,$N$37:$V$262,6,0),"Bitte wählen sie aus, ob sie zum Vorsteuerabzug berechtigt sind!")),"") ->  | AQ26: >50g CO2 /km | AR26: BMW 745e, Le xDrive | AS26: x | AT26: nicht förderfähig gemäß FRL | AU26: nicht förderfähig gemäß FRL | AW26: 0 | AX26: 0 | BA26: Oberklasse | BB26: PKW
A27: 15 | D27: =IF($B27>0,IF(Fahrzeuge!$C$1="nein",VLOOKUP($B27,$N$37:$V$262,4,0),IF(Fahrzeuge!$C$1="ja",VLOOKUP($B27,$N$37:$V$262,3,0),"Bitte wählen sie aus, ob sie zum Vorsteuerabzug berechtigt sind!")),"") ->  | F27: =IF($B27>0,IF(Fahrzeuge!$C$1="nein",VLOOKUP($B27,$N$37:$V$262,7,0),IF(Fahrzeuge!$C$1="ja",VLOOKUP($B27,$N$37:$V$262,6,0),"Bitte wählen sie aus, ob sie zum Vorsteuerabzug berechtigt sind!")),"") ->  | AQ27: 43g CO2/km; 57 km e-Reichw. | AR27: BMW X1 xDrive (alle Modelle) | AS27: x | AT27: =ROUND(AU27/1.19,2) -> 38361.34 | AU27: 45650 | AV27: BMW X1 sDrive 18i | AW27: 29075.63 | AX27: 34600 | AY27: =ROUND(AT27-AW27,0) -> 9286 | AZ27: 11050 | BA27: Geländewagen / SUV | BB27: PKW
A28: 16 | D28: =IF($B28>0,IF(Fahrzeuge!$C$1="nein",VLOOKUP($B28,$N$37:$V$262,4,0),IF(Fahrzeuge!$C$1="ja",VLOOKUP($B28,$N$37:$V$262,3,0),"Bitte wählen sie aus, ob sie zum Vorsteuerabzug berechtigt sind!")),"") ->  | F28: =IF($B28>0,IF(Fahrzeuge!$C$1="nein",VLOOKUP($B28,$N$37:$V$262,7,0),IF(Fahrzeuge!$C$1="ja",VLOOKUP($B28,$N$37:$V$262,6,0),"Bitte wählen sie aus, ob sie zum Vorsteuerabzug berechtigt sind!")),"") ->  | AQ28: 48-54g CO2/km; 51-55 km e-Reichw. | AR28: BMW X3 xDrive (alle Modelle) | AS28: x | AT28: =ROUND(AU28/1.19,2) -> 48235.29 | AU28: 57400 | AV28: BMW X3 xDrive 20i | AW28: 39915.97 | AX28: 47500 | AY28: 8319 | AZ28: 9900 | BA28: Geländewagen / SUV | BB28: PKW
A29: =A28+1 -> 17 | D29: =IF($B29>0,IF(Fahrzeuge!$C$1="nein",VLOOKUP($B29,$N$37:$V$262,4,0),IF(Fahrzeuge!$C$1="ja",VLOOKUP($B29,$N$37:$V$262,3,0),"Bitte wählen sie aus, ob sie zum Vorsteuerabzug berechtigt sind!")),"") ->  | F29: =IF($B29>0,IF(Fahrzeuge!$C$1="nein",VLOOKUP($B29,$N$37:$V$262,7,0),IF(Fahrzeuge!$C$1="ja",VLOOKUP($B29,$N$37:$V$262,6,0),"Bitte wählen sie aus, ob sie zum Vorsteuerabzug berechtigt sind!")),"") ->  | AQ29: Citroën C1 Vti 68 (5 Türer) nicht mehr erhältlich | AR29: Citroën DS 7 CROSSBACK E-TENSE 4x4 be chic | AS29: x | AT29: =ROUND(AU29/1.19,2) -> 42260.5 | AU29: 50290 | AV29: Citroën DS 7 CROSSBACK PureTech 225 Automatik 226 | AW29: 35159.66 | AX29: 41840 | AY29: 7101 | AZ29: 8450 | BA29: Geländewagen / SUV | BB29: PKW
A30: =A29+1 -> 18 | D30: =IF($B30>0,IF(Fahrzeuge!$C$1="nein",VLOOKUP($B30,$N$37:$V$262,4,0),IF(Fahrzeuge!$C$1="ja",VLOOKUP($B30,$N$37:$V$262,3,0),"Bitte wählen sie aus, ob sie zum Vorsteuerabzug berechtigt sind!")),"") ->  | F30: =IF($B30>0,IF(Fahrzeuge!$C$1="nein",VLOOKUP($B30,$N$37:$V$262,7,0),IF(Fahrzeuge!$C$1="ja",VLOOKUP($B30,$N$37:$V$262,6,0),"Bitte wählen sie aus, ob sie zum Vorsteuerabzug berechtigt sind!")),"") ->  | AR30: Citroën E-Mehari | AT30: =ROUND(AU30/1.19,2) -> 21235.29 | AU30: 25270 | AV30: Fiat 500c | AW30: 13016.81 | AX30: 15490 | AY30: 8218 | AZ30: 9780 | BA30: Mini | BB30: PKW
A31: =A30+1 -> 19 | D31: =IF($B31>0,IF(Fahrzeuge!$C$1="nein",VLOOKUP($B31,$N$37:$V$262,4,0),IF(Fahrzeuge!$C$1="ja",VLOOKUP($B31,$N$37:$V$262,3,0),"Bitte wählen sie aus, ob sie zum Vorsteuerabzug berechtigt sind!")),"") ->  | F31: =IF($B31>0,IF(Fahrzeuge!$C$1="nein",VLOOKUP($B31,$N$37:$V$262,7,0),IF(Fahrzeuge!$C$1="ja",VLOOKUP($B31,$N$37:$V$262,6,0),"Bitte wählen sie aus, ob sie zum Vorsteuerabzug berechtigt sind!")),"") ->  | AR31: Citroën C-Zero | AT31: 18319.33 | AU31: 21800 | AV31: Citroën C1 Vti 72 Live (5 Türer) | AW31: 8991.6 | AX31: 10700 | AY31: 9328 | AZ31: 11100 | BA31: Mini | BB31: PKW
A32: =A31+1 -> 20 | D32: =IF($B32>0,IF(Fahrzeuge!$C$1="nein",VLOOKUP($B32,$N$37:$V$262,4,0),IF(Fahrzeuge!$C$1="ja",VLOOKUP($B32,$N$37:$V$262,3,0),"Bitte wählen sie aus, ob sie zum Vorsteuerabzug berechtigt sind!")),"") ->  | F32: =IF($B32>0,IF(Fahrzeuge!$C$1="nein",VLOOKUP($B32,$N$37:$V$262,7,0),IF(Fahrzeuge!$C$1="ja",VLOOKUP($B32,$N$37:$V$262,6,0),"Bitte wählen sie aus, ob sie zum Vorsteuerabzug berechtigt sind!")),"") ->  | AR32: DS3 Crossback E-Tense | AT32: 32260.5 | AU32: 38390 | AV32: DS3 Crossback PureTech 130 So Chic (N) | AW32: 24781.51 | AX32: 29490 | AY32: 7479 | AZ32: 8900 | BA32: Geländewagen / SUV | BB32: PKW | BC32: 43913
A33: Summe | E33: =IF($B33>0,VLOOKUP($B33,$N$42:$V$262,5,0),"") ->  | G33: =IF(B33>0,IF($C$1="nein",VLOOKUP($B33,$N$42:$V$262,9,0),IF($C$1="ja",VLOOKUP($B33,$N$42:$V$262,8,0),"Bitte wählen sie aus, ob sie zum Vorsteuerabzug berechtigt sind!")),"") ->  | J33: =IF($B33>0,IF(VLOOKUP($B33,$N$42:$V$262,2,FALSE)="x",IF(I33>10000,10000,I33),I33),"") ->  | K33: =SUM(K13:K32) -> 0 | AQ33: 26g CO2 /km | AR33: Ego-Life 20 | AT33: 13361.34 | AU33: 15900 | AV33: Hyundai i10 | AW33: 8394.96 | AX33: 9990 | AY33: =ROUND(AT33-AW33,0) -> 4966 | AZ33: =ROUND(AU33-AX33,0) -> 5910 | BA33: Mini | BB33: PKW
AR34: Ego-Life 40 | AT34: 14621.85 | AU34: 17400 | AV34: Hyundai i10 | AW34: 8394.96 | AX34: 9990 | AY34: 6227 | AZ34: 7410 | BA34: Mini | BB34: PKW
A35: * | B35: Bei Beantragung von Fahrzeugsegmenten erfolgt die Abrechnung nach den Pauschalwerten des tatsächlich beschafften Fahrzeugs! | J35: =IF($H13>0,"Durchschnittswert anerkannte Jahresfahrleistung: ","") ->  | K35: =IF(H13>0,(SUMPRODUCT(H13:H32,J13:J32)/SUM(H13:H32)),"") ->  | AR35: Ego-Life 60 | AT35: 16722.69 | AU35: 19900 | AV35: Hyundai i10 | AW35: 8394.96 | AX35: 9990 | AY35: 8328 | AZ35: 9910 | BA35: Mini | BB35: PKW
N36: E-Fahrzeug | O36: PHEV | P36: E-Listenpreis netto | Q36: E-Listenpreis brutto | R36: Vergleichsfahrzeug | S36: Listenpreis netto | T36: Listenpreis brutto | U36: förderfähig netto | V36: förderfähig brutto | W36: Info Segment | X36: Fahrzeugklasse Abkürzung | Y36: Kommentar | Z36: ergänzt am: | AR36: Ford Kuga 2,5 L Duratec PHEV Titanium | AS36: x | AT36: 33025.21 | AU36: 39300 | AV36: Ford Kuga 1,5 L EcoBoost Titanium | AW36: 26806.72 | AX36: 31900 | AY36: 6218 | AZ36: 7400 | BA36: Geländewagen / SUV | BB36: PKW
N37: AIWAYS U5 (alle Versionen) | P37: =(35403+3000)/1.19 -> 32271.42857 | Q37: =ROUND(P37*1.19,2) -> 38403 | R37: VW Tiguan Life 1.5 TSI OPF Gang 110 kW | S37: =ROUND(29901.68/1.16,2) -> 25777.31 | T37: =ROUND(S37*1.19,2) -> 30675 | U37: =ROUND(P37-S37,0) -> 6494 | V37: =ROUND(Q37-T37,0) -> 7728 | W37: Geländewagen / SUV | X37: PKW | Z37: 2021-06-22
N38: Aixam eCity | P38: =ROUND(Q38/1.19,2) -> 12092.44 | Q38: 14390 | R38: Mercedes Benz smart 52 kW | S38: =ROUND(T38/1.19,2) -> 9382.35 | T38: 11165 | U38: =ROUND(P38-S38,0) -> 2710 | V38: =ROUND(Q38-T38,0) -> 3225 | W38: Leichtfahrzeug | X38: LFZ | Z38: 2020-03-23 | AR38: Ford Tourneo Custom Bus (PHEV) | AS38: x | AT38: =ROUND(AU38/1.19,2) -> 60420 | AU38: 71899.8 | AV38: Ford Tourneo Custom Bus Titanium (130 PS, Automatik) | AW38: =ROUND(AX38/1.19,2) -> 42170 | AX38: 50182.3 | AY38: =ROUND(AT38-AW38,0) -> 18250 | AZ38: =ROUND(AU38-AX38,0) -> 21718 | BA38: Utility (N1) | BB38: NFZ
N39: Audi A3 e-tron | P39: =ROUND(Q39/1.19,2) -> 31848.74 | Q39: 37900 | R39: Audi A3 Sportback Attraction | S39: =ROUND(T39/1.19,2) -> 23949.58 | T39: 28500 | U39: =ROUND(P39-S39,0) -> 7899 | V39: =ROUND(Q39-T39,0) -> 9400 | W39: Kompaktklasse | X39: PKW | AR39: Ford Transit Custom Kombi PKW (PHEV) | AS39: x | AT39: 52805 | AU39: 62837.95 | AV39: Ford Transit Custom Kombi PKW (130 PS, Automatik) | AW39: 35505 | AX39: 42250.95 | AY39: 17300 | AZ39: 20587 | BA39: Utility (N1) | BB39: NFZ
N40: Audi A3 Sportback 40 TFSIe (alle Varianten) | O40: x | P40: 32302.52 | Q40: =ROUND(P40*1.19,2) -> 38440 | R40: A3 Sportback 35 TFSI 6-Gang 110 kW | S40: 24285.71 | T40: =ROUNDUP(S40*1.19,2) -> 28900 | U40: 8017 | V40: 9540 | W40: Kompaktklasse | X40: PKW | Z40: 2020-12-17
N41: Audi e-tron 50 Quattro | P41: 58067.23 | Q41: 69100 | R41: Audi A6 allroad quattro 3.0 TDI 200kW | S41: 51302.52 | T41: 61050 | U41: 6765 | V41: 8050 | W41: Geländewagen / SUV | X41: PKW | Z41: 2020-03-23 | AR41: Ford Transit Custom Kastenwagen LKW (PHEV) | AS41: x | AT41: nicht förderfähig gemäß FRL | AU41: nicht förderfähig gemäß FRL | AV41: Ford Transit Custom Kastenwagen LKW | BA41: Utility (N1) | BB41: NFZ
N42: Audi e-tron 55 Quattro | P42: 67142.86 | Q42: 79900 | R42: Audi A6 allroad quattro 3.0 TDI 200kW | S42: 51302.52 | T42: 61050 | U42: 15840 | V42: 18850 | W42: Geländewagen / SUV | X42: PKW | AR42: Honda e | AT42: =ROUND(AU42/1.19,2) -> 28445.38 | AU42: 33850 | AV42: Honda Jazz Trend | AW42: =ROUND(AX42/1.19,2) -> 14529.41 | AX42: 17290 | AY42: =ROUND(AT42-AW42,0) -> 13916 | AZ42: =ROUND(AU42-AX42,0) -> 16560 | BA42: Kleinwagen | BB42: PKW | BC42: 43913
N43: Audi Q4 e-tron 55 kWh (alle Versionen) | P43: 35210.08 | Q43: =ROUND(P43*1.19,2) -> 41900 | R43: Audi Q3 35 TFSI 6-Gang 110 kW | S43: 30294.12 | T43: =ROUND(S43*1.19,2) -> 36050 | U43: =ROUND(P43-S43,0) -> 4916 | V43: =ROUND(Q43-T43,0) -> 5850 | W43: Geländewagen / SUV | X43: PKW | Z43: 2021-09-07
N44: Audi Q4 e-tron 82 kWh (alle Versionen) | P44: 39915.97 | Q44: =ROUND(P44*1.19,2) -> 47500 | R44: Audi Q3 35 TFSI 6-Gang 110 kW | S44: 30294.12 | T44: =ROUND(S44*1.19,2) -> 36050 | U44: =ROUND(P44-S44,0) -> 9622 | V44: =ROUND(Q44-T44,0) -> 11450 | W44: Geländewagen / SUV | X44: PKW | Z44: 2021-09-07
N45: Audi Q5 TFSI e quattro | O45: x | P45: 50798.32 | Q45: 60450 | R45: Audi Q5 sport 45 TFSI quattro | S45: 45378.15 | T45: 54000 | U45: 5420 | V45: 6450 | W45: Geländewagen / SUV | X45: PKW | AR45: Hyundai IONIQ Plug-in-Hybrid | AS45: x | AT45: 25126.05 | AU45: 29900 | AV45: Hyundai i30 5T 1.4 T­GDI, 6­Gang, 103 kW | AW45: 19033.61 | AX45: 22650 | AY45: =ROUND(AT45-AW45,0) -> 6092 | AZ45: =ROUND(AU45-AX45,0) -> 7250 | BA45: Kompaktklasse | BB45: PKW
N46: BMW 225xe iPerformance Active Tourer (8,8 kWh) | O46: x | P46: 33319.33 | Q46: 39650 | R46: BMW 220i Active Tourer | S46: 29495.8 | T46: 35100 | U46: 3824 | V46: 4550 | W46: Kompaktklasse | X46: PKW | AQ46: 29g CO2 /km 58km e-Reichweite Kia Ceed in der Variante Dream-Team nicht gefunden | AR46: Hyundai IONIQ Elektro | AT46: 27983.19 | AU46: 33300 | AV46: Hyundai i30 5T 1.4 T­GDI, 6­Gang, 103 kW | AW46: 19033.61 | AX46: 22650 | AY46: 8950 | AZ46: 10650 | BA46: Kompaktklasse | BB46: PKW
N47: BMW 330e Advantage (10,8 kWh) | O47: x | P47: 43319.33 | Q47: 51550 | R47: BMW 330i Advantage (G20) | S47: 37605.04 | T47: 44750 | U47: 5714 | V47: 6800 | W47: Mittelklasse | X47: PKW | AR47: Hyundai Kona Elektro (alle Versionen) | AT47: 29075.63 | AU47: 34600 | AV47: Hyundai Kona | AW47: 17310.92 | AX47: 20600 | AY47: 11765 | AZ47: 14000 | BA47: Geländewagen / SUV | BB47: PKW
N48: BMW 530e iPerformance | O48: x | P48: 47058.82 | Q48: 56000 | R48: BMW 530i | S48: 44621.85 | T48: 53100 | U48: 2437 | V48: 2900 | W48: Obere Mittelklasse | X48: PKW | AR48: ISEKI Goupil G4 (9 kWh) | AT48: 29881.51 | AU48: 35559 | AV48: Piaggio Porter Chassis | AW48: 13193.28 | AX48: 15700 | AY48: 16688 | AZ48: 19859 | BA48: Utility (N1) | BB48: NFZ | BC48: 43913
N49: BMW 745e, Le (ohne xDrive) | O49: x | P49: 89411.76 | Q49: 106400 | R49: BMW 730 Ld | S49: 78907.56 | T49: 93900 | U49: 10504 | V49: 12500 | W49: Oberklasse | X49: PKW | AR49: ISEKI Goupil G4 (13,8 kWh) | AT49: 33663.03 | AU49: 40059 | AV49: Piaggio Porter Chassis | AW49: 13193.28 | AX49: 15700 | AY49: 20470 | AZ49: 24359 | BA49: Utility (N1) | BB49: NFZ | BC49: 43913
N50: BMW 745e, Le xDrive | O50: x | P50: nicht förderfähig gemäß FRL | Q50: nicht förderfähig gemäß FRL | S50: 0 | T50: 0 | W50: Oberklasse | X50: PKW | AR50: ISEKI Goupil G5 (11,5 kWh) | AT50: 34967.23 | AU50: 41611 | AV50: Piaggio Porter Chassis | AW50: 13193.28 | AX50: 15700 | AY50: 21774 | AZ50: 25911 | BA50: Utility (N1) | BB50: NFZ | BC50: 43913
N51: BMW i3 (42,2 kWh, 37,9 kWh nutzbar) | P51: =ROUND(Q51/1.19,2) -> 31932.77 | Q51: 38000 | R51: BMW 218 i Active Tourer | S51: 24789.92 | T51: 29500 | U51: =ROUND(P51-S51,0) -> 7143 | V51: =ROUND(Q51-T51,0) -> 8500 | W51: Kleinwagen | X51: PKW | AR51: ISEKI Goupil G5 (19,2 kWh) | AT51: 44294.96 | AU51: 52711 | AV51: Piaggio Porter Chassis | AW51: 13193.28 | AX51: 15700 | AY51: 31102 | AZ51: 37011 | BA51: Utility (N1) | BB51: NFZ | BC51: 43913
N52: BMW i3s (42,2 kWh, 37,9 kWh nutzbar) | P52: 34957.98 | Q52: 41600 | R52: BMW 218 i Active Tourer Sport Line | S52: 28865.55 | T52: 34350 | U52: 6092 | V52: 7250 | W52: Kleinwagen | X52: PKW | AR52: Jaguar I-Pace | AT52: 65747.9 | AU52: 78240 | AV52: Jaguar F-Pace 30t AWD | AW52: 47689.08 | AX52: 56750 | AY52: 18059 | AZ52: 21490 | BA52: Geländewagen / SUV | BB52: PKW
N53: BMW i8 Coupé | O53: x | P53: 115966.39 | Q53: 138000 | R53: Porsche 911 Carrera 4S | S53: 107545.38 | T53: 127979 | U53: 8421 | V53: 10021 | W53: Sportwagen | X53: PKW | AQ53: 33g CO2 /km 62km e-Reichweite | AR53: Kia Soul EV | AT53: 24781.51 | AU53: 29490 | AV53: Kia Soul | AW53: 14487.39 | AX53: 17240 | AY53: 10294 | AZ53: 12250 | BA53: Mini-Van | BB53: PKW
N54: BMW i8 Roadster | O54: x | P54: 130252.1 | Q54: 155000 | R54: Porsche 911 Carrera 4S Cabrio | S54: 127948.74 | T54: 152259 | U54: 2303 | V54: 2741 | W54: Sportwagen | X54: PKW | AR54: Kia Niro Plug-in Hybrid | AS54: x | AT54: =ROUND(AU54/1.19,0) -> 27521 | AU54: 32750 | AV54: Kia Ceed SW 1.4 T-GDI | AW54: =ROUND(AX54/1.19,0) -> 19403 | AX54: 23090 | AY54: 8118 | AZ54: 9660 | BA54: Kompaktklasse | BB54: PKW
N55: BMW iX3 (210 KW) | P55: 54159.66 | Q55: =ROUND(P55*1.19,2) -> 64450 | R55: BMW X3 xDrive30i | S55: =ROUND(53028.56/1.16,2) -> 45714.28 | T55: =ROUNDUP(S55*1.19,2) -> 54400 | U55: 8445 | V55: =ROUND(Q55-T55,0) -> 10050 | W55: Geländewagen / SUV | X55: PKW | Z55: 2020-12-17
N56: BMW X1 xDrive25e (alle Modelle) | O56: x | P56: 38361.34 | Q56: 45650 | R56: BMW X1 xDrive 20i | S56: 35210.08 | T56: 41900 | U56: 3151 | V56: 3750 | W56: Geländewagen / SUV | X56: PKW | AR56: Kia e-Niro 39,2 kWh | AT56: =ROUND(AU56/1.19,0) -> 28815 | AU56: 34290 | AV56: Kia Ceed SW 1.4 T-GDI | AW56: =ROUND(AX56/1.19,0) -> 19403 | AX56: 23090 | AY56: 9412 | AZ56: =ROUND(AU56-AX56,0) -> 11200 | BA56: Kompaktklasse | BB56: PKW
N57: BMW X3 xDrive30e (alle Modelle) | O57: x | P57: 48235.29 | Q57: 57400 | R57: BMW X3 xDrive 30i | S57: 45714.29 | T57: 54400 | U57: 2521 | V57: 3000 | W57: Geländewagen / SUV | X57: PKW | AQ57: >70g CO2/km 48km e-Reichweite | AR57: Kia e-Niro 64 kWh | AT57: =ROUND(AU57/1.19,0) -> 32008 | AU57: 38090 | AV57: Kia Ceed SW 1.4 T-GDI | AW57: =ROUND(AX57/1.19,0) -> 19403 | AX57: 23090 | AY57: 12605 | AZ57: =ROUND(AU57-AX57,0) -> 15000 | BA57: Kompaktklasse | BB57: PKW
N58: CITROËN Berlingo Electric L1 | P58: =ROUND(Q58/1.19,2) -> 20990 | Q58: 24978.1 | R58: Citroën Berlingo L1 | S58: =ROUND(T58/1.19,2) -> 14500 | T58: 17255 | U58: =ROUND(P58-S58,0) -> 6490 | V58: 7723 | W58: Utility (N1) | X58: NFZ | Y58: 2021-06-23
N59: CITROËN Berlingo Electric L1, Batterie zur Miete | P59: 15690 | Q59: 18671.1 | R59: Citroën Berlingo L1 | S59: 14500 | T59: 17255 | U59: 1190 | V59: 1416 | W59: Utility (N1) | X59: NFZ | AR59: >70g CO2/km 48km e-Reichweite | AS59: Kia Optima 2.0 GDI Plug-in Hybrid | AT59: x | AU59: =ROUND(AV59/1.19,2) -> 34235.29 | AV59: 40740 | AW59: Kia Optima 2.0 CVVL | AX59: =ROUND(AY59/1.19,2) -> 24109.24 | AY59: 28690 | AZ59: 10126 | BA59: =ROUND(AV59-AY59,0) -> 12050 | BB59: Mittelklasse | BC59: PKW
N60: CITROËN Berlingo Electric L2 | P60: 22040 | Q60: 26227.6 | R60: Citroën Berlingo L2 | S60: 15350 | T60: 18266.5 | U60: 6690 | V60: 7961 | W60: Utility (N1) | X60: NFZ
N61: CITROËN Berlingo Electric L2, Batterie zur Miete | P61: 16740 | Q61: 19920.6 | R61: Citroën Berlingo L2 | S61: 15350 | T61: 18266.5 | U61: 1390 | V61: 1654 | W61: Utility (N1) | X61: NFZ | Y61: aus EMIN_EFA, 20.08.2020 | AS61: Land Rover Range Rover Sport P400e Plug-in Hybrid | AT61: x | AU61: nicht förderfähig gemäß FRL | AV61: nicht förderfähig gemäß FRL | AW61: Land Rover Range Rover Sport 3.0 TDV7 | BB61: Geländewagen / SUV | BC61: PKW
N62: CITROËN ë-Berlingo (alle Versionen) | P62: =ROUND(36590/1.19,2) -> 30747.9 | Q62: =ROUND(P62*1.19,2) -> 36590 | R62: Citroën Berlingo Feel 81 kW | S62: =ROUND(23740/1.19,2) -> 19949.58 | T62: =S62*1.19 -> 23740.0002 | U62: 10798 | V62: 12850 | W62: Großraum-Van | X62: PKW | Z62: aus EMIN_EFA, 20.08.2020 | AR62: Land Rover Range Rover P400e Plug-in Hybrid | AS62: x | AT62: nicht förderfähig gemäß FRL | AU62: nicht förderfähig gemäß FRL | AV62: Land Rover Range Rover 3.0 TDV7 | BA62: Geländewagen / SUV | BB62: PKW
N63: CITROËN C-Zero | P63: 18319.33 | Q63: 21800 | R63: Citroën C1 Vti 72 Live (5 Türer) | S63: 8991.6 | T63: 10700 | U63: 9328 | V63: 11100 | W63: Mini | X63: PKW | Z63: 2021-01-10
N64: CITROËN DS 7 CROSSBACK E-TENSE 4x4 be chic | O64: x | P64: 42260.5 | Q64: 50290 | R64: Citroën DS 7 CROSSBACK PureTech 225 Automatik 225 | S64: 35159.66 | T64: 41840 | U64: 7101 | V64: 8450 | W64: Geländewagen / SUV | X64: PKW | Z64: 2021-01-10
N65: CITROËN E-JUMPY M 50kWh | P65: 35250 | Q65: =ROUND(P65*1.19,2) -> 41947.5 | R65: Citroën E-JUMPY M Blue HDi 120 90 kW | S65: 26500 | T65: =ROUND(S65*1.19,2) -> 31535 | U65: 8750 | V65: 10413 | W65: Utility (N1) | X65: NFZ | AR65: Mercedes Benz smart fortwo ED (alle Versionen) | AT65: =ROUND(AU65/1.19,2) -> 18436.97 | AU65: 21940 | AV65: Mercedes Benz smart 52 kW | AW65: =ROUND(AX65/1.19,2) -> 9382.35 | AX65: 11165 | AY65: =ROUND(AT65-AW65,0) -> 9055 | AZ65: =ROUND(AU65-AX65,0) -> 10775 | BA65: Mini | BB65: PKW
N66: CITROËN E-JUMPY M 75kWh | P66: 40250 | Q66: =ROUND(P66*1.19,2) -> 47897.5 | R66: Citroën E-JUMPY M Blue HDi 120 90 kW | S66: 26500 | T66: =ROUND(S66*1.19,2) -> 31535 | U66: 13750 | V66: 16363 | W66: Utility (N1) | X66: NFZ | Z66: 2020-12-17
N67: CITROËN ë-SpaceTourer 50kWh (alle Varianten) | P67: =ROUND(51440/1.19,2) -> 43226.89 | Q67: =P67*1.19 -> 51439.9991 | R67: CITROËN SpaceTourer M BlueHDi 145 (Business) | S67: =ROUND(39340/1.19,2) -> 33058.82 | T67: =S67*1.19 -> 39339.9958 | U67: 10168 | V67: 12100 | W67: Großraum-Van | X67: PKW | Z67: 2020-03-23 | AR67: Mercedes Benz smart forfour electric drive (alle Versionen) | AT67: =ROUND(AU67/1.19,2) -> 18991.6 | AU67: 22600 | AV67: Mercedes Benz smart forfour 52 kW | AW67: =ROUND(AX67/1.19,2) -> 9936.97 | AX67: 11825 | AY67: 9055 | AZ67: 10775 | BA67: Kleinwagen | BB67: PKW
N68: CITROËN ë-SpaceTourer 75kWh (alle Varianten) | P68: =ROUND(57440/1.19,2) -> 48268.91 | Q68: =P68*1.19 -> 57440.0029 | R68: CITROËN SpaceTourer M BlueHDi 145 (Business) | S68: =ROUND(39340/1.19,2) -> 33058.82 | T68: =S68*1.19 -> 39339.9958 | U68: 15210 | V68: 18100 | W68: Großraum-Van | X68: PKW | AQ68: 39 - 41 CO2/km (NEFZ) | AR68: Mercedes Benz A 250 e | AT68: 42842.1 | AU68: 48740.65 | AV68: Mercedes Benz A 201 | AW68: 35666.1 | AX68: 40576.65 | AY68: 7176 | AZ68: 8164 | BA68: Kompaktklasse | BB68: PKW
N69: CITROËN E-Mehari | P69: =ROUND(Q69/1.19,2) -> 21235.29 | Q69: 25270 | R69: Fiat 500c | S69: =ROUND(T69/1.19,2) -> 13016.81 | T69: 15490 | U69: 8218 | V69: 9780 | W69: Mini | X69: PKW
N70: CITROËN e-C4 Feel | P70: =34640/1.19 -> 29109.2437 | Q70: =ROUND(P70*1.19,2) -> 34640 | R70: CITROËN C4 PureTech 130 6-Gang | S70: =23940/1.19 -> 20117.64706 | T70: =ROUNDUP(S70*1.19,2) -> 23940 | U70: 8992 | V70: =ROUND(Q70-T70,0) -> 10700 | W70: Kompaktklasse | X70: PKW | AQ70: 40 - 42 CO2/km (NEFZ) | AR70: Mercedes Benz A 250 e (Limousine) | AT70: 43256.1 | AU70: 49211.65 | AV70: Mercedes Benz A 200 (Limousine) | AW70: 36080.1 | AX70: 41047.65 | AY70: 7176 | AZ70: 8164 | BA70: Kompaktklasse | BB70: PKW
N71: CITROËN DS3 Crossback E-Tense | P71: =ROUND(Q71/1.19,2) -> 32260.5 | Q71: 38390 | R71: DS3 Crossback PureTech 130 So Chic (N) | S71: =ROUND(T71/1.19,2) -> 24781.51 | T71: 29490 | U71: 7479 | V71: 8900 | W71: Geländewagen / SUV | X71: PKW | Z71: aus EMIN_EFA, 20.08.2020 | AQ71: 46 g CO2 /km (NEFZ) | AR71: Mercedes Benz C 300 de | AS71: x | AT71: 56945.7 | AU71: 64786.05 | AV71: Mercedes Benz C 300 d | AW71: 53909.7 | AX71: 61332.05 | AY71: 3036 | AZ71: 3454 | BA71: Obere Mittelklasse | BB71: PKW
N72: e.GO-Life 20 | P72: =ROUND(Q72/1.19,2) -> 13361.34 | Q72: 15900 | R72: Hyundai i10 | S72: =ROUND(T72/1.19,2) -> 8394.96 | T72: 9990 | U72: 4966 | V72: 5910 | W72: Mini | X72: PKW | Z72: 2020-12-17
N73: e.GO-Life 40 | P73: =ROUND(Q73/1.19,2) -> 14621.85 | Q73: 17400 | R73: Hyundai i10 | S73: =ROUND(T73/1.19,2) -> 8394.96 | T73: 9990 | U73: 6227 | V73: 7410 | W73: Mini | X73: PKW | Z73: 2020-12-17
N74: e.GO-Life 60 | P74: =ROUND(Q74/1.19,2) -> 16722.69 | Q74: 19900 | R74: Hyundai i10 | S74: =ROUND(T74/1.19,2) -> 8394.96 | T74: 9990 | U74: 8328 | V74: 9910 | W74: Mini | X74: PKW | Z74: aus EMIN_EFA, 13.08.2020 | AQ74: 41 g CO2 /km (NEFZ) | AR74: Mercedes Benz C 300 de (T-Modell) | AS74: x | AT74: 58877.7 | AU74: 66984.05 | AV74: Mercedes Benz C 300 d (T-Modell) | AW74: 55841.7 | AX74: 63530.05 | AY74: 3036 | AZ74: 3454 | BA74: Obere Mittelklasse | BB74: PKW
N75: EVUM aCar (alle Varianten) | P75: 28990 | Q75: =ROUND(P75*1.19,2) -> 34498.1 | R75: Piaggio Porter Maxxi Chassis | S75: 16302.52 | T75: =ROUND(S75*1.19,2) -> 19400 | U75: 12687 | V75: 15098 | W75: Utility | X75: NFZ | Z75: aus EMIN_EFA, 13.08.2020 | AQ75: Preisliste zu Vito noch nicht online. Folgt laut Mercedes in Kürze (Stand: 15.03.2019), solange gilt der alte Preis | AR75: Mercedes Benz E 300 e | AS75: x | AT75: =ROUND(AU75/1.19,2) -> 46300 | AU75: 55097 | AV75: Mercedes Benz E 301 | AW75: =ROUND(AX75/1.19,2) -> 44600 | AX75: 53074 | AY75: 1700 | AZ75: 2023 | BA75: Obere Mittelklasse | BB75: PKW
N76: Fiat 500 Action 23,8 kWh | P76: =23560/1.19 -> 19798.31933 | Q76: =ROUND(P76*1.19,2) -> 23560 | R76: Fiat 500 LOUNGE | S76: =15684.37/1.16 -> 13521.00862 | T76: =ROUND(S76*1.19,2) -> 16090 | U76: 6277 | V76: 7470 | W76: Kleinwagen | X76: PKW | AR76: Mercedes Benz E 300 de (T-Modell) | AS76: x | AT76: 67758 | AU76: 77087 | AV76: Mercedes Benz E 300 d (T-Modell) | AW76: 64494.3 | AX76: 73373.95 | AY76: 3264 | AZ76: 3713 | BA76: Obere Mittelklasse | BB76: PKW
N77: Fiat 500 Passion 42,0 kWh | P77: =27560/1.19 -> 23159.66387 | Q77: =ROUND(P77*1.19,2) -> 27560 | R77: Fiat 500 LOUNGE | S77: =15684.37/1.16 -> 13521.00862 | T77: =ROUND(S77*1.19,2) -> 16090 | U77: 9639 | V77: 11470 | W77: Kleinwagen | X77: PKW | AR77: Mercedes Benz eVito (alle Varianten) | AT77: =ROUND(AU77/1.19,2) -> 44990 | AU77: 53538.1 | AV77: Mercedes Benz Vito Kastenwagen Worker | AW77: 25516.2 | AX77: 29029.3 | AY77: =ROUND(AT77-AW77,0) -> 19474 | AZ77: 24509 | BA77: Utility (N1) | BB77: NFZ
N78: Fiat E-Ducato 47 kWh (alle Versionen) | P78: 56000 | Q78: =ROUND(P78*1.19,2) -> 66640 | R78: Fiat Ducato 88 KW | S78: 30840 | T78: =ROUND(S78*1.19,2) -> 36699.6 | U78: 25160 | V78: 29940 | W78: Utility (N1) | X78: NFZ | AQ78: 40g CO2 /km 54 km e-Reichweite | AR78: Mercedes Benz EQC 400 4MATIC | AT78: 82662 | AU78: 94043 | AV78: Mercedes Benz GLC 300 4MATIC | AW78: 62141.4 | AX78: 70697.1 | AY78: =ROUND(AT78-AW78,0) -> 20521 | AZ78: 23346 | BA78: Geländewagen / SUV | BB78: PKW
N79: Fiat E-Ducato 79 kWh (alle Versionen) | P79: 73000 | Q79: =ROUND(P79*1.19,2) -> 86870 | R79: Fiat Ducato 88 KW | S79: 30840 | T79: =ROUND(S79*1.19,2) -> 36699.6 | U79: 42160 | V79: 50170 | W79: Utility (N1) | X79: NFZ | AR79: Mini Cooper SE 3-Türer Trim S | AT79: =ROUND(AU79/1.19,2) -> 27310.92 | AU79: 32500 | AV79: Mini Cooper S 3-Türer | AW79: =ROUND(AX79/1.19,2) -> 24327.73 | AX79: 28950 | AY79: =ROUND(AT79-AW79,0) -> 2983 | AZ79: 3550 | BA79: Kleinwagen | BB79: PKW
N80: Ford Kuga 2,5 L Duratec PHEV Titanium | O80: x | P80: =ROUND(Q80/1.19,2) -> 33025.21 | Q80: 39300 | R80: Ford Kuga 1,5 L EcoBoost Titanium | S80: =ROUND(T80/1.19,2) -> 26806.72 | T80: 31900 | U80: 6218 | V80: 7400 | W80: Geländewagen / SUV | X80: PKW | Z80: 2020-12-17
N81: Ford Tourneo Custom Bus (PHEV) | O81: x | P81: =ROUND(Q81/1.19,2) -> 60420 | Q81: 71899.8 | R81: Ford Tourneo Custom Bus Titanium (130 PS, Automatik) | S81: =ROUND(T81/1.19,2) -> 42170 | T81: 50182.3 | U81: 18250 | V81: 21718 | W81: Großraum-Van | X81: PKW | Z81: 2020-12-17
N82: Ford e-Transit (alle N1/N2 -Versionen) | P82: 57920 | Q82: =ROUND(P82*1.19,2) -> 68924.8 | R82: Ford Transit (gleiche Nutzlast + Radstand) | S82: 37720 | T82: =ROUND(S82*1.19,2) -> 44886.8 | U82: =ROUND(P82-S82,0) -> 20200 | V82: =ROUND(Q82-T82,0) -> 24038 | W82: Utility | X82: NFZ | Y82: Mittelwert aus allen verfügbaren Modellen mit vorhandenem VGL-Fzg. Bei 4,25t-Variante fehlt vergleichbarer Verbrenner | Z82: 2022-03-01
N83: Ford Transit Custom Kastenwagen LKW (PHEV) | O83: x | P83: nicht förderfähig gemäß FRL | Q83: nicht förderfähig gemäß FRL | R83: Ford Transit Custom Kastenwagen LKW | W83: Utility (N1) | X83: NFZ | Z83: 2020-03-23 | AR83: Mitsubishi PLUG-IN HYBRID OUTLANDER | AS83: x | AT83: =ROUND(AU83/1.19,2) -> 31924.37 | AU83: 37990 | AV83: Mitsubishi Outlander | AW83: =ROUND(AX83/1.19,2) -> 21756.3 | AX83: 25890 | AY83: =ROUND(AT83-AW83,0) -> 10168 | AZ83: 12100 | BA83: Geländewagen / SUV | BB83: PKW
N84: Ford Transit Custom Kombi PKW (PHEV) | O84: x | P84: =ROUND(Q84/1.19,2) -> 52805 | Q84: 62837.95 | R84: Ford Transit Custom Kombi PKW (130 PS, Automatik) | S84: =ROUND(T84/1.19,2) -> 35505 | T84: 42250.95 | U84: =ROUND(P84-S84,0) -> 17300 | V84: =ROUND(Q84-T84,0) -> 20587 | W84: Großraum-Van | X84: PKW | AR84: Nissan Leaf ZE1 (40 kwh) | AT84: =ROUND(AU84/1.19,2) -> 30924.37 | AU84: 36800 | AV84: Nissan Pulsar Visia | AW84: =ROUND(AX84/1.19,2) -> 15537.82 | AX84: 18490 | AY84: =ROUND(AT84-AW84,0) -> 15387 | AZ84: 18310 | BA84: Kompaktklasse | BB84: PKW
N85: Ford Mustang Mach-E Standard Range 75,7 kWh (alle Varianten) | P85: =46900/1.19 -> 39411.76471 | Q85: =ROUND(P85*1.19,2) -> 46900 | R85: Ford Mondeo 2,0l EcoBlue Limousine 110 kW | S85: =36554.62/1.16 -> 31512.60345 | T85: =ROUND(S85*1.19,2) -> 37500 | U85: 7899 | V85: 9400 | W85: Geländewagen / SUV | X85: PKW | Z85: 2021-01-14
N86: Ford Mustang Mach-E Extended Range 98,7 kWh (alle Varianten) | P86: =54475/1.19 -> 45777.31092 | Q86: =ROUND(P86*1.19,2) -> 54475 | R86: Ford Mondeo 2,0l EcoBlue Limousine 110 kW | S86: =36554.62/1.16 -> 31512.60345 | T86: =ROUND(S86*1.19,2) -> 37500 | U86: 14265 | V86: 16975 | W86: Geländewagen / SUV | X86: PKW | AR86: Nissan Leaf ZE1 e+ (62 kwh) | AT86: 51836.97 | AU86: 58973.94 | AV86: Nissan Pulsar Visia | AW86: 29453.59 | AX86: 33008.744 | AY86: 36563.898 | AZ86: 40119.052 | BA86: Kompaktklasse | BB86: PKW
N87: Honda e | P87: 28445.38 | Q87: 33850 | R87: Honda Jazz Trend | S87: 14529.41 | T87: 17290 | U87: 13916 | V87: 16560 | W87: Kleinwagen | X87: PKW | Z87: 2021-06-18
N88: Hyundai IONIQ Elektro 28 kWh | P88: 27983.19 | Q88: 33300 | R88: Hyundai i30 5T 1.4 T­GDI, 6­Gang, 103 kW | S88: 19033.61 | T88: 22650 | U88: 8950 | V88: 10650 | W88: Kompaktklasse | X88: PKW | Z88: 2021-06-18
N89: Hyundai IONIQ Elektro 38,3 kWh | P89: =ROUND(34458.82/1.16,2) -> 29705.88 | Q89: =ROUND(P89*1.19,2) -> 35350 | R89: Hyundai i30 5T 1.5 T­GDI, 6­Gang, 117 kW | S89: =ROUND(25139.83/1.16,2) -> 21672.27 | T89: =ROUND(S89*1.19,2) -> 25790 | U89: 8034 | V89: 9560 | W89: Kompaktklasse | X89: PKW
N90: Hyundai IONIQ Plug-in-Hybrid | O90: x | P90: 25126.05 | Q90: 29900 | R90: Hyundai i30 5T 1.4 T­GDI, 6­Gang, 103 kW | S90: 19033.61 | T90: 22650 | U90: 6092 | V90: 7250 | W90: Kompaktklasse | X90: PKW | Z90: 2021-01-22
N91: Hyundai IONIQ 5 Elektro 58 kWh | P91: =ROUND(41900/1.19,2) -> 35210.08 | Q91: =ROUND(P91*1.19,2) -> 41900 | R91: Hyundai Tucson 48 V 1.6 T-GDI, 110 kW | S91: =ROUND(30500/1.19,2) -> 25630.25 | T91: =ROUND(S91*1.19,2) -> 30500 | U91: 9580 | V91: 11400 | W91: Geländewagen / SUV | X91: PKW | Z91: 2020-03-23 | AR91: Nissan e-NV200 Kasten | AT91: =ROUND(AU91/1.19,2) -> 28660 | AU91: 34105.4 | AV91: Nissan NV200 Kasten | AW91: =ROUND(AX91/1.19,2) -> 15350 | AX91: 18266.5 | AY91: =ROUND(AT91-AW91,0) -> 13310 | AZ91: 15839 | BA91: Utility (N1) | BB91: NFZ
N92: Hyundai IONIQ 5 Elektro 72,6 kWh | P92: =ROUND((41900+3200)/1.19,2) -> 37899.16 | Q92: =ROUND(P92*1.19,2) -> 45100 | R92: Hyundai Tucson 48 V 1.6 T-GDI, 110 kW | S92: =ROUND(30500/1.19,2) -> 25630.25 | T92: =ROUND(S92*1.19,2) -> 30500 | U92: 12269 | V92: 14600 | W92: Geländewagen / SUV | X92: PKW | Z92: 2020-03-23 | AR92: Nissan e-NV200 Evalia 5-Sitzer | AT92: =ROUND(AU92/1.19,2) -> 36498.32 | AU92: 43433 | AV92: Nissan NV200 Evalia 5-Sitzer | AW92: =ROUND(AX92/1.19,2) -> 19571.43 | AX92: 23290 | AY92: 16927 | AZ92: 20143 | BA92: Utility (N1) | BB92: NFZ
N93: Hyundai Kona Elektro 39,2 kWh | P93: 29075.63 | Q93: 34600 | R93: Hyundai Kona | S93: 17310.92 | T93: 20600 | U93: 11765 | V93: 14000 | W93: Geländewagen / SUV | X93: PKW | Z93: 2020-03-23 | AR93: Nissan e-NV200 Evalia 7-Sitzer | AT93: =ROUND(AU93/1.19,2) -> 37168.07 | AU93: =AU92+797 -> 44230 | AV93: Nissan NV200 Evalia 7-Sitzer | AW93: =ROUND(AX93/1.19,2) -> 21193.28 | AX93: 25220 | AY93: 15975 | AZ93: 19010 | BA93: Utility (N1) | BB93: NFZ
N94: Hyundai Kona Elektro 64,0 kWh | P94: =ROUND(41850/1.19,2) -> 35168.07 | Q94: =ROUND(P94*1.19,2) -> 41850 | R94: Hyundai Kona 1.6 GDI, Select | S94: =ROUND(26900/1.19,2) -> 22605.04 | T94: =ROUND(S94*1.19,2) -> 26900 | U94: 12563 | V94: 14950 | W94: Geländewagen / SUV | X94: PKW | Z94: 2020-03-23 | AR94: Opel Ampera-E Plus | AT94: =ROUND(AU94/1.19,2) -> 36126.05 | AU94: 42990 | AV94: Opel Astra 1.4 Direct Injection Turbo (Start/Stop) | AW94: =ROUND(AX94/1.19,2) -> 20684.87 | AX94: 24615 | AY94: 15441 | AZ94: 18375 | BA94: Kompaktklasse | BB94: PKW
N95: ISEKI Goupil G4 (13,8 kWh) | P95: 33663.03 | Q95: 40059 | R95: Piaggio Porter Chassis | S95: 13193.28 | T95: 15700 | U95: 20470 | V95: 24359 | W95: Utility (N1) | X95: NFZ | AR95: Opel Corsa-e Edition | AT95: 35543.7 | AU95: 40437.4 | AV95: Opel Corsa Edition (74 kW) | AW95: 20328.91 | AX95: 23127.82 | AY95: 15215 | AZ95: 17310 | BA95: Kleinwagen | BB95: PKW
N96: ISEKI Goupil G4 (9 kWh) | P96: 29881.51 | Q96: 35559 | R96: Piaggio Porter Chassis | S96: 13193.28 | T96: 15700 | U96: 16688 | V96: 19859 | W96: Utility (N1) | X96: NFZ | Z96: 2020-12-18
N97: ISEKI Goupil G5 (11,5 kWh) | P97: 34967.23 | Q97: 41611 | R97: Piaggio Porter Chassis | S97: 13193.28 | T97: 15700 | U97: 21774 | V97: 25911 | W97: Utility (N1) | X97: NFZ | Z97: 2020-12-18
N98: ISEKI Goupil G5 (19,2 kWh) | P98: 44294.96 | Q98: 52711 | R98: Piaggio Porter Chassis | S98: 13193.28 | T98: 15700 | U98: 31102 | V98: 37011 | W98: Utility (N1) | X98: NFZ | Z98: 2020-12-18
N99: Jaguar I-Pace | P99: 65747.9 | Q99: 78240 | R99: Jaguar F-Pace 30t AWD | S99: 47689.08 | T99: 56750 | U99: 18059 | V99: 21490 | W99: Geländewagen / SUV | X99: PKW | Z99: 2020-12-18
N100: Jaguar E-Pace R-Dynamic S P300e | O100: x | P100: 49025.21 | Q100: =ROUND(P100*1.19,2) -> 58340 | R100: Jaguar E-Pace R-Dynamic S D165 AWD | S100: 43134.46 | T100: =ROUNDDOWN(S100*1.19,2) -> 51330 | U100: 5891 | V100: 7010 | W100: Geländewagen / SUV | X100: PKW | Z100: 2020-09-10 | AR100: Peugeot e-2008 (alle Versionen) | AT100: =ROUND(AU100/1.19,2) -> 29621.85 | AU100: 35250 | AV100: Peugeot 2008 PureTech 130 Active | AW100: =ROUND(AX100/1.19,2) -> 19537.82 | AX100: 23250 | AY100: 10084 | AZ100: 12000 | BA100: Geländewagen / SUV | BB100: PKW | BC100: 43913
N101: Jaguar F-Pace P400e | O101: x | P101: 59474.14 | Q101: =ROUND(P101*1.19,2) -> 70774.23 | R101: Jaguar F-Pace D300 AWD | S101: 55232.76 | T101: =ROUND(S101*1.19,2) -> 65726.98 | U101: 4241 | V101: 5047 | W101: Geländewagen / SUV | X101: PKW | AR101: Peugeot e-208 (alle Versionen) | AT101: 25588.24 | AU101: 30450 | AV101: Peugeot 208 PureTech 100 Active | AW101: 15084.03 | AX101: 17950 | AY101: 10504 | AZ101: 12500 | BA101: Kleinwagen | BB101: PKW | BC101: 43913
N102: Jeep Renegade 4xe 1.3I T-GDI I4 PHEV (alle Varianten) | O102: x | P102: 35798.32 | Q102: =ROUND(P102*1.19,2) -> 42600 | R102: Jeep Renegade 1.3I T-GDI I4 | S102: 26638.66 | T102: =ROUNDDOWN(S102*1.19,2) -> 31700 | U102: =ROUND(P102-S102,0) -> 9160 | V102: =ROUND(Q102-T102,0) -> 10900 | W102: Geländewagen / SUV | X102: PKW | AR102: Peugeot e-208 Allure | AT102: 27058.82 | AU102: 32200 | AV102: Peugeot 208 Allure | AW102: 17142.86 | AX102: 20400 | AY102: =ROUND(AT102-AW102,0) -> 9916 | AZ102: =ROUND(AU102-AX102,0) -> 11800 | BA102: Kleinwagen | BB102: PKW
N103: Jeep Compass 4xe 1.3I T-GDI I4 PHEV (alle Varianten) | O103: x | P103: 39159.66 | Q103: =ROUND(P103*1.19,2) -> 46600 | R103: Jeep Compass 1.3I T-GDI I4 | S103: 31428.57 | T103: =ROUND(S103*1.19,2) -> 37400 | U103: =ROUND(P103-S103,0) -> 7731 | V103: =ROUND(Q103-T103,0) -> 9200 | W103: Geländewagen / SUV | X103: PKW | AR103: Peugeot 508 SW GT Hybrid 225 e-EAT9 | AS103: x | AT103: 43361.34 | AU103: 51600 | AV103: Peugeot 508 SW GT PureTech 225 EAT9 | AW103: 39915.97 | AX103: 47500 | AY103: 3445 | AZ103: 4100 | BA103: Mittelklasse | BB103: PKW
N104: Kia Ceed SW PHEV (alle Versionen) | O104: x | P104: 29410.92 | Q104: 34999 | R104: Kia Ceed SW 1.4 T-GDI | S104: 21000 | T104: 24990 | U104: 8411 | V104: 10009 | W104: Kompaktklasse | X104: PKW | AQ104: Vti 68 jetzt Vti 73 | AR104: Peugeot Partner electrique (L1) | AT104: 21290 | AU104: 25335.1 | AV104: Peugeot Partner (L1) BlueHDi 76 | AW104: 16338.66 | AX104: 19443 | AY104: 4951 | AZ104: 5892 | BA104: Utility (N1) | BB104: NFZ
N105: Kia e-Niro 39,2 kWh | P105: 28815.13 | Q105: 34290 | R105: Kia Ceed SW 1.4 T-GDI | S105: 19403.36 | T105: 23090 | U105: 9412 | V105: 11200 | W105: Kompaktklasse | X105: PKW | AR105: Peugeot Partner electrique (L2) | AT105: 22340 | AU105: 26584.6 | AV105: Peugeot Partner (L2) Blue Hdi 76 | AW105: 19079.83 | AX105: 22705 | AY105: 3260 | AZ105: 3880 | BA105: Utility (N1) | BB105: NFZ
N106: Kia e-Niro 64 kWh | P106: 32008.4 | Q106: 38090 | R106: Kia Ceed SW 1.4 T-GDI | S106: 19403.36 | T106: 23090 | U106: 12605 | V106: 15000 | W106: Kompaktklasse | X106: PKW | Z106: 2021-01-21
N107: Kia Niro Plug-in Hybrid | O107: x | P107: 27521.01 | Q107: 32750 | R107: Kia Ceed SW 1.4 T-GDI | S107: 19403.36 | T107: 23090 | U107: 8118 | V107: 9660 | W107: Kompaktklasse | X107: PKW | Z107: 2021-01-21
N108: Kia Optima 2.0 GDI Plug-in Hybrid | O108: x | P108: 34235.29 | Q108: 40740 | R108: Kia Optima 2.0 CVVL | S108: 24109.24 | T108: 28690 | U108: 10126 | V108: 12050 | W108: Mittelklasse | X108: PKW | Z108: 2020-09-10 | AR108: Peugeot iOn | AT108: 18319.33 | AU108: 21800 | AV108: Peugeot 108 5-Türer Vti 73 | AW108: 10462.18 | AX108: 12450 | AY108: 7857 | AZ108: 9350 | BA108: Mini | BB108: PKW
N109: Kia Soul EV (27 bzw. 30 kWh) | P109: 24781.51 | Q109: 29490 | R109: Kia Soul | S109: 14487.39 | T109: 17240 | U109: 10294 | V109: 12250 | W109: Mini-Van | X109: PKW | AR109: Piaggio Porter Elektro (alle Versionen) | AT109: 23618.49 | AU109: 28106 | AV109: Piaggio Porter (alle Versionen) | AW109: 12894.96 | AX109: 15345 | AY109: 10724 | AZ109: 12761 | BA109: Utility (N1) | BB109: NFZ
N110: Kia e-Soul 39,2 kWh | P110: 28563.03 | Q110: =ROUNDDOWN(P110*1.19,2) -> 33990 | R110: Kia Niro 1.6 GDI Hybrid | S110: =ROUND(26990/1.19,2) -> 22680.67 | T110: =ROUND(S110*1.19,2) -> 26990 | U110: 5882 | V110: 7000 | W110: Mini-Van | X110: PKW
N111: Kia e-Soul 64,0 kWh | P111: 31756.3 | Q111: =ROUND(P111*1.19,2) -> 37790 | R111: Kia Niro 1.6 GDI Hybrid | S111: 22680.67 | T111: 26990 | U111: 9076 | V111: 10800 | W111: Mini-Van | X111: PKW | Z111: 2021-02-02
N112: Kia XCeed PHEV (alle Versionen) | O112: x | P112: 30251.26 | Q112: 35999 | R112: Kia XCeed Vision | S112: 20075.63 | T112: 23890 | U112: 10176 | V112: 12109 | W112: Kompaktklasse | X112: PKW | Z112: 2021-02-02
N113: Land Rover Range Rover P400e Plug-in Hybrid | O113: x | P113: nicht förderfähig gemäß FRL | Q113: nicht förderfähig gemäß FRL | R113: Land Rover Range Rover 3.0 TDV6 | W113: Geländewagen / SUV | X113: PKW | Z113: 2020-12-17
N114: Land Rover Range Rover Sport P400e Plug-in Hybrid | O114: x | P114: nicht förderfähig gemäß FRL | Q114: nicht förderfähig gemäß FRL | R114: Land Rover Range Rover Sport 3.0 TDV6 | W114: Geländewagen / SUV | X114: PKW | Z114: 2021-06-18
N115: LEVC TX5 (alle Versionen) | O115: x | P115: 61422.5 | Q115: =ROUND(P115*1.19,2) -> 73092.78 | R115: Opel Vivaro Combi S 88 kW | S115: 30610 | T115: =ROUND(S115*1.19,2) -> 36425.9 | U115: =ROUND(P115-S115,0) -> 30813 | V115: 36667 | W115: Großraum-Van | X115: PKW | AQ115: >60g CO2/km | AR115: Polaris Ranger EV | AT115: 19076.5 | AU115: 21703 | AV115: Polaris Ranger 571 | AW115: 15760 | AX115: 17930 | AY115: 3317 | AZ115: 3773 | BA115: Utility (N1) | BB115: NFZ
N116: LEVC VN5 (alle Versionen) | O116: x | P116: 52450 | Q116: =ROUND(P116*1.19,2) -> 62415.5 | R116: Opel Vivaro Cargo S 88kW | S116: 27470 | T116: =ROUND(S116*1.19,2) -> 32689.3 | U116: =ROUND(P116-S116,0) -> 24980 | V116: =ROUND(Q116-T116,0) -> 29726 | W116: Utility (N1) | X116: NFZ | AQ116: >60g CO2/km | AR116: Polestar 3 | AT116: =ROUND(AU116/1.19,2) -> 50336.13 | AU116: 59900 | AV116: Volvo S60 T6 AWD | AW116: =ROUND(AX116/1.19,2) -> 43865.55 | AX116: 52200 | AY116: 6471 | AZ116: 7700 | BA116: Mittelklasse | BB116: PKW
N117: Mazda MX-30 e-SKYACTIV | P117: 28142.86 | Q117: =ROUND(P117*1.19,2) -> 33490 | R117: CX-30 SKYACTIV-G 2.0 M Hybrid | S117: 20832.76 | T117: =ROUND(S117*1.19,2) -> 24790.98 | U117: =ROUND(P117-S117,0) -> 7310 | V117: =ROUND(Q117-T117,0) -> 8699 | W117: Geländewagen / SUV | X117: PKW | Z117: 2021-06-22 | AR117: Porsche Panamera Turbo S E-Hybrid (alle Versionen) | AS117: x | AT117: nicht förderfähig gemäß FRL | AU117: nicht förderfähig gemäß FRL | AW117: =ROUND(AX117/1.19,2) -> 0 | AX117: 0 | AY117: 0 | AZ117: 0 | BA117: Oberklasse | BB117: PKW
N118: MAN e-TGE | R118: wie VW e-Crafter | U118: =U229 -> 40620 | V118: =V229 -> 48338 | W118: Utility (N1) | X118: NFZ | Z118: 2021-06-22 | AR118: Porsche Cayenne S E-Hybrid | AS118: x | AT118: nicht förderfähig gemäß FRL | AU118: nicht förderfähig gemäß FRL | AW118: =ROUND(AX118/1.19,2) -> 0 | AX118: 0 | AY118: 0 | AZ118: 0 | BA118: Oberklasse | BB118: PKW
N119: Mercedes Benz A 250 e | O119: x | P119: =ROUND(Q119/1.19,2) -> 31045 | Q119: 36943.55 | R119: Mercedes Benz A 200 | S119: =ROUND(T119/1.19,2) -> 25845 | T119: 30755.55 | U119: =ROUND(P119-S119,0) -> 5200 | V119: =ROUND(Q119-T119,0) -> 6188 | W119: Kompaktklasse | X119: PKW | AR119: Renault Zoe Life (22 kWh), Batterie zur Miete | AT119: =ROUND(AU119/1.19,2) -> 18403.36 | AU119: 21900 | AV119: Renault Clio Limited 5-türig | AW119: =ROUND(AX119/1.19,2) -> 13016.81 | AX119: 15490 | AY119: =ROUND(AT119-AW119,0) -> 5387 | AZ119: =ROUND(AU119-AX119,0) -> 6410 | BA119: Kleinwagen | BB119: PKW
N120: Mercedes Benz A 250 e (Limousine) | O120: x | P120: 31345 | Q120: 37300.55 | R120: Mercedes Benz A 200 (Limousine) | S120: 26145 | T120: 31112.55 | U120: 5200 | V120: 6188 | W120: Kompaktklasse | X120: PKW | AR120: Porsche Taycan 4S | AT120: 122468.62 | AU120: 139330.24 | AV120: Porsche Panamera 5 | AW120: 113360.62 | AX120: 128968.24 | AY120: =ROUND(AT120-AW120,0) -> 9108 | AZ120: 10362 | BA120: Oberklasse | BB120: PKW
N121: Mercedes Benz C 300 (T) e (W205/S205) | O121: x | P121: 39265 | Q121: 46725.35 | R121: Mercedes Benz C 300 | S121: 37360 | T121: 44458.4 | U121: 1905 | V121: 2267 | W121: Mittelklasse | X121: PKW | Z121: 2021-06-15
N122: Mercedes Benz C 300 (T) de (W205/S205) | O122: x | P122: 41265 | Q122: 49105.35 | R122: Mercedes Benz C 300 d | S122: 39065 | T122: 46487.35 | U122: 2200 | V122: 2618 | W122: Mittelklasse | X122: PKW | AR122: Renault Zoe Life (22 kWh) | AT122: =ROUND(AU122/1.19,2) -> 25126.05 | AU122: 29900 | AV122: Renault Clio Limited 5-türig | AW122: =ROUND(AX122/1.19,2) -> 13016.81 | AX122: 15490 | AY122: 12109 | AZ122: 14410 | BA122: Kleinwagen | BB122: PKW
N123: Mercedes Benz E 300 (T) e | O123: x | P123: =ROUND(Q123/1.19,2) -> 46300 | Q123: 55097 | R123: Mercedes Benz E 300 | S123: =ROUND(T123/1.19,2) -> 44600 | T123: 53074 | U123: =ROUND(P123-S123,0) -> 1700 | V123: =ROUND(Q123-T123,0) -> 2023 | W123: Obere Mittelklasse | X123: PKW | Z123: 2020-08-20 | AR123: Renault Zoe Life (41 kWh), Batterie zur Miete | AT123: =ROUND(AU123/1.19,2) -> 21932.77 | AU123: 26100 | AV123: Renault Clio Limited 5-türig | AW123: 13016.81 | AX123: 15490 | AY123: 8916 | AZ123: 10610 | BA123: Kleinwagen | BB123: PKW
N124: Mercedes Benz E 300 (T) de | O124: x | P124: 49100 | Q124: 58429 | R124: Mercedes Benz E 300 d (T-Modell) | S124: 46735 | T124: 55614.65 | U124: 2365 | V124: 2814 | W124: Obere Mittelklasse | X124: PKW | Z124: 2020-12-17
N125: Mercedes Benz EQA 250 | P125: 39950 | Q125: =ROUND(P125*1.19,2) -> 47540.5 | R125: Mercedes Benz GLA 180 | S125: 30920 | T125: =ROUND(S125*1.19,2) -> 36794.8 | U125: =ROUND(P125-S125,0) -> 9030 | V125: =ROUND(Q125-T125,0) -> 10746 | W125: Geländewagen / SUV | X125: PKW | Z125: 2020-12-17
N126: Mercedes Benz EQC 400 4MATIC | P126: 59900 | Q126: 71281 | R126: Mercedes Benz GLC 300 4MATIC | S126: 45030 | T126: 53585.7 | U126: 14870 | V126: 17695 | W126: Geländewagen / SUV | X126: PKW | Z126: 2020-12-17
N127: Mercedes Benz EQV 300 (alle Varianten) | P127: 60889 | Q127: =ROUND(P127*1.19,2) -> 72457.91 | R127: Mercedes Benz V220D Lang | S127: 44280 | T127: =ROUND(S127*1.19,2) -> 52693.2 | U127: 16609 | V127: 19765 | W127: Großraum-Van | X127: PKW | Z127: aus EMIN_EFA, 13.08.2020 | AR127: Renault Zoe Life (41 kWh) | AT127: =ROUND(AU127/1.19,2) -> 28655.46 | AU127: 34100 | AV127: Renault Clio Limited 5-türig | AW127: 13016.81 | AX127: 15490 | AY127: 15639 | AZ127: 18610 | BA127: Kleinwagen | BB127: PKW
N128: Mercedes Benz GLA250e | O128: x | P128: 38810 | Q128: 46183.9 | R128: GLA200d | S128: 32890 | T128: 39139.1 | U128: 5920 | V128: 7045 | W128: Geländewagen / SUV | X128: PKW | Z128: aus EMIN_EFA, 13.08.2020 | AR128: Renault Zoe (52 kWh, 108 PS), Batterie zur Miete | AT128: 27715.97 | AU128: 31531.94 | AV128: Renault Clio Limited 5-türig | AW128: 13016.81 | AX128: 15490 | AY128: =ROUND(AT128-AW128,0) -> 14699 | AZ128: =ROUND(AU128-AX128,0) -> 16042 | BA128: Kleinwagen | BB128: PKW
N129: Mercedes Benz GLC 300 (d)e 4MATIC (ab 2019, MOPF, alle Varianten) | O129: x | P129: 49950 | Q129: 59440.5 | R129: GLC 220 d 4MATIC | S129: 42435 | T129: 50497.65 | U129: 7515 | V129: 8943 | W129: Geländewagen / SUV | X129: PKW | AR129: Renault Zoe (52 kWh, 108 PS) | AT129: 37097.65 | AU129: 42205.3 | AV129: Renault Clio Limited 5-türig | AW129: 13016.81 | AX129: 15490 | AY129: 24081 | AZ129: 26715 | BA129: Kleinwagen | BB129: PKW
N130: Mercedes Benz GLE 350 (d)e 4MATIC (V 167, C167, alle Varianten) | O130: x | P130: 64980 | Q130: 77326.2 | R130: GLE 300 d 4MATIC | S130: 58930 | T130: 70126.7 | U130: 6050 | V130: 7200 | W130: Geländewagen / SUV | X130: PKW | Z130: 2020-09-10 | AR130: Renault Zoe (52 kWh, 135 PS), Batterie zur Miete | AT130: 32354.63 | AU130: 36809.26 | AV130: Renault Clio TCe 130 EDC GPF (130 PS) | AW130: 24457.32 | AX130: 27824.64 | AY130: 7897 | AZ130: 8985 | BA130: Kleinwagen | BB130: PKW
N131: Mercedes Benz eSprinter 35 kWh (alle Varianten) | P131: 53900 | Q131: 64141 | R131: Mercedes Benz Sprinter Kasten 211 CDI | S131: 32485 | T131: 38657.15 | U131: 21415 | V131: 25484 | W131: Utility (N1) | X131: NFZ | AR131: Renault Zoe (52 kWh, 135 PS) | AT131: 41736.31 | AU131: 47482.62 | AV131: Renault Clio TCe 130 EDC GPF (130 PS) | AW131: 24457.32 | AX131: 27824.64 | AY131: 17279 | AZ131: 19658 | BA131: Kleinwagen | BB131: PKW
N132: Mercedes Benz eSprinter 47 kWh (alle Varianten) | P132: 61273 | Q132: 72914.87 | R132: Mercedes Benz Sprinter Kasten 211 CDI | S132: 32485 | T132: 38657.15 | U132: 28788 | V132: 34258 | W132: Utility (N1) | X132: NFZ | AR132: Renault Kangoo Z.E. 33 2-Sitzer, Batterie zur Miete | AT132: =ROUND(AU132/1.19,2) -> 20820 | AU132: 24775.8 | AV132: Renault Kangoo Rapid Compact (2-Sitzer) | AW132: =ROUND(AX132/1.19,2) -> 14310 | AX132: 17028.9 | AY132: 6510 | AZ132: 7747 | BA132: Utility (N1) | BB132: NFZ
N133: Mercedes Benz eVito (alle Varianten) | P133: =ROUND(Q133/1.19,2) -> 44990 | Q133: 53538.1 | R133: Mercedes Benz Vito Kastenwagen Worker | S133: =ROUND(T133/1.19,2) -> 18490 | T133: 22003.1 | U133: 26500 | V133: 31535 | W133: Utility (N1) | X133: NFZ | Z133: 2021-06-22
N134: Mercedes Benz eVito Tourer (alle Varianten) | P134: 55232 | Q134: =ROUND(P134*1.19,2) -> 65726.08 | R134: MercedesBenz Vito Tourer, Base, Lang | S134: 30040 | T134: =ROUND(S134*1.19,2) -> 35747.6 | U134: 25192 | V134: 29978 | W134: Großraum-Van | X134: NFZ | AR134: Renault Kangoo Z.E. 33 2-Sitzer | AT134: 29920 | AU134: 35604.8 | AV134: Renault Kangoo Rapid Compact (2-Sitzer) | AW134: 14310 | AX134: 17028.9 | AY134: 15610 | AZ134: 18576 | BA134: Utility (N1) | BB134: NFZ
N135: Mercedes Benz smart forfour electric drive (alle Versionen) | P135: =ROUND(Q135/1.19,2) -> 18991.6 | Q135: 22600 | R135: Mercedes Benz smart forfour 52 kW | S135: =ROUND(T135/1.19,2) -> 9936.97 | T135: 11825 | U135: 9055 | V135: 10775 | W135: Kleinwagen | X135: PKW | AR135: Renault Kangoo Maxi Z.E. 33 2-Sitzer, Batterie zur Miete | AT135: 22020 | AU135: 26203.8 | AV135: Renault Kangoo Rapid Maxi | AW135: 18600 | AX135: 22134 | AY135: 3420 | AZ135: 4070 | BA135: Utility (N1) | BB135: NFZ
N136: Mercedes Benz smart fortwo ED (alle Versionen) | P136: 18436.97 | Q136: 21940 | R136: Mercedes Benz smart 52 kW | S136: 9382.35 | T136: 11165 | U136: 9055 | V136: 10775 | W136: Mini | X136: PKW | AR136: Renault Kangoo Maxi Z.E. 33 2-Sitzer | AT136: 31120 | AU136: 37032.8 | AV136: Renault Kangoo Rapid Maxi | AW136: 18600 | AX136: 22134 | AY136: 12520 | AZ136: 14899 | BA136: Utility (N1) | BB136: NFZ
N137: MG ZS EV (alle Versionen) | P137: =(31990)/1.19 -> 26882.35294 | Q137: =ROUND(P137*1.19,2) -> 31990 | R137: Peugeot 2008 PureTech 130 Active | S137: =ROUND(T137/1.19,2) -> 19537.82 | T137: 23250 | U137: 7345 | V137: 8740 | W137: Kompaktklasse | X137: PKW | AR137: Renault Kangoo Maxi Z.E. 33 5-Sitzer, Batterie zur Miete | AT137: 22820 | AU137: 27155.8 | AV137: Renault Kangoo Rapid Maxi (Combi) | AW137: 19600 | AX137: 23324 | AY137: 3220 | AZ137: 3832 | BA137: Utility (N1) | BB137: NFZ
N138: Mini Cooper SE 3-Türer Trim S | P138: 27310.92 | Q138: 32500 | R138: Mini Cooper S 3-Türer | S138: 24327.73 | T138: 28950 | U138: 2983 | V138: 3550 | W138: Kleinwagen | X138: PKW | AR138: Renault Kangoo Maxi Z.E. 33 5-Sitzer | AT138: 31920 | AU138: 37984.8 | AV138: Renault Kangoo Rapid Maxi (Combi) | AW138: 19600 | AX138: 23324 | AY138: 12320 | AZ138: 14661 | BA138: Utility (N1) | BB138: NFZ
N139: Mitsubishi PLUG-IN HYBRID OUTLANDER | O139: x | P139: 31924.37 | Q139: 37990 | R139: Mitsubishi Outlander | S139: 21756.3 | T139: 25890 | U139: 10168 | V139: 12100 | W139: Geländewagen / SUV | X139: PKW | AQ139: Übernahme alter Preis | AR139: Renault Kangoo Z.E. 33 Doppelkabine, Batterie zur Miete | AT139: 23220 | AU139: 27631.8 | AV139: Renault Kangoo Rapid Maxi (Doppelkabine) | AW139: 19847.06 | AX139: 23618 | AY139: 3373 | AZ139: 4014 | BA139: Utility (N1) | BB139: NFZ
N140: Nissan e-NV200 Evalia 5-Sitzer | P140: 36498.32 | Q140: 43433 | R140: Nissan NV200 Evalia 5-Sitzer | S140: 19571.43 | T140: 23290 | U140: 16927 | V140: 20143 | W140: Großraum-Van | X140: NFZ | AR140: Renault Kangoo Z.E. 33 Doppelkabine | AT140: 32320 | AU140: 38460.8 | AV140: Renault Kangoo Rapid Maxi (Doppelkabine) | AW140: 19847.06 | AX140: 23618 | AY140: 12473 | AZ140: 14843 | BA140: Utility (N1) | BB140: NFZ
N141: Nissan e-NV200 Evalia 7-Sitzer | P141: 37168.07 | Q141: =Q140+797 -> 44230 | R141: Nissan NV200 Evalia 7-Sitzer | S141: 21193.28 | T141: 25220 | U141: 15975 | V141: 19010 | W141: Großraum-Van | X141: NFZ | AR141: Renault Master Z.E. Kasten (alle Versionen) | AT141: 64000 | AU141: 76160 | AV141: Renault Master Kasten (alle Versionen) | AW141: 31560 | AX141: 37556.4 | AY141: 32440 | AZ141: 38604 | BA141: Utility (N1) | BB141: NFZ
N142: Nissan e-NV200 Kasten | P142: 28660 | Q142: 34105.4 | R142: Nissan NV200 Kasten | S142: 15350 | T142: 18266.5 | U142: 13310 | V142: 15839 | W142: Utility (N1) | X142: NFZ | Z142: 2021-06-23
N143: Nissan Leaf ZE1 (40 kwh) | P143: 30924.37 | Q143: 36800 | R143: Nissan Pulsar Visia | S143: 15537.82 | T143: 18490 | U143: 15387 | V143: 18310 | W143: Kompaktklasse | X143: PKW | AR143: Renault Master Z.E. Plattform-FG (alle Versionen) | AT143: 62000 | AU143: 73780 | AV143: Renault Master Plattform-FG (alle Versionen) | AW143: 28120 | AX143: 33462.8 | AY143: 33880 | AZ143: 40317 | BA143: Utility (N1) | BB143: NFZ
N144: Nissan Leaf ZE1 e+ (62 kwh) | P144: 37563.03 | Q144: 44700 | R144: Nissan Pulsar Visia | S144: 15537.82 | T144: 18490 | U144: 22025 | V144: 26210 | W144: Kompaktklasse | X144: PKW | Z144: 2020-04-17 | AQ144: Preis aus Projektunterlagen | AR144: Renault Twizzy Life - Intens, Cargo (18PS) | AT144: 6428.57 | AU144: 7650 | AV144: Quad 400 ccm | AW144: 3067.23 | AX144: 3650 | AY144: 3361 | AZ144: 4000 | BA144: Leichtfahrzeug | BB144: LFZ
N145: Opel Ampera-E Plus | P145: 36126.05 | Q145: 42990 | R145: Opel Astra 1.4 Direct Injection Turbo (Start/Stop) | S145: 20684.87 | T145: 24615 | U145: =ROUND(P145-S145,0) -> 15441 | V145: =ROUND(Q145-T145,0) -> 18375 | W145: Kompaktklasse | X145: PKW | Z145: 2020-12-18
N146: Opel Combo-e Life (alle Versionen) | P146: =ROUND(38100/1.19,2) -> 32016.81 | Q146: =P146*1.19 -> 38100.0039 | R146: Opel Combo Life Edition 81 kW | S146: =ROUND(25180/1.19,2) -> 21159.66 | T146: =S146*1.19 -> 25179.9954 | U146: =ROUND(P146-S146,0) -> 10857 | V146: =ROUND(Q146-T146,0) -> 12920 | W146: Großraum-Van | X146: PKW | Z146: 2020-12-18
N147: Opel Corsa-e Edition | P147: 25756.3 | Q147: 30650 | R147: Opel Corsa Edition (74 kW) | S147: 14731.09 | T147: 17530 | U147: 11025 | V147: 13120 | W147: Kleinwagen | X147: PKW | Z147: 2020-12-18
N148: Opel Grandland X (133 kW, alle Versionen) | P148: 37533.61 | Q148: 44665 | R148: Opel Grandland X 1,6 Direct Injection Turbo (133 kW) | S148: 30504.2 | T148: 36300 | U148: 7029 | V148: 8365 | W148: Geländewagen / SUV | X148: PKW | Z148: 2020-12-18
N149: Opel Mokka-E | P149: =ROUND(32158.32/1.16,2) -> 27722.69 | Q149: =P149*1.19 -> 32990.0011 | R149: Opel Mokka 1.2 74 kW | S149: =ROUND(19486.05/1.16,2) -> 16798.32 | T149: =S149*1.19 -> 19990.0008 | U149: 10924 | V149: 13000 | W149: Kompaktklasse | X149: PKW | Z149: 2020-12-18
N150: Opel Zafira Life 50 kWh (alle Versionen) | P150: =ROUND(55904.2/1.16,2) -> 48193.28 | Q150: 57350.0032 | R150: Opel Zafira Life M 88 kW | S150: =ROUND(43602.35/1.16,2) -> 37588.23 | T150: 44729.9937 | U150: 10605 | V150: 12620 | W150: Großraum-Van | X150: PKW | Z150: 2021-01-11
N151: Opel Zafira Life 75 kWh (alle Versionen) | P151: =ROUND(61752.94/1.16,2) -> 53235.29 | Q151: 63349.9951 | R151: Opel Zafira Life M 88 kW | S151: =ROUND(43602.35/1.16,2) -> 37588.23 | T151: 44729.9937 | U151: 15647 | V151: 18620 | W151: Großraum-Van | X151: PKW | Z151: 2021-01-11
N152: Opel Vivaro-E Cargo 50 kWh (alle Versionen) | P152: 36240 | Q152: 43125.6 | R152: Opel Vivaro Cargo M 90 kW | S152: 28280 | T152: 33653.2 | U152: 7960 | V152: 9472 | W152: Utility | X152: NFZ | AR152: Renault Twizzy 45 - Life, Intens, Cargo (5PS) | AT152: 5840.34 | AU152: 6950 | AV152: Quad 300 ccm | AW152: 2478.99 | AX152: 2950 | AY152: 3361 | AZ152: 4000 | BA152: Leichtfahrzeug | BB152: LFZ
N153: Opel Vivaro-E Cargo 75 kWh (alle Versionen) | P153: 41240 | Q153: 49075.6 | R153: Opel Vivaro Cargo M 90 kW | S153: 28280 | T153: 33653.2 | U153: 12960 | V153: 15422 | W153: Utility | X153: NFZ | Z153: 2020-12-18
N154: Opel Vivaro-E Kombi 50 kWh (alle Versionen) | P154: 42250 | Q154: 50277.5 | R154: Opel Kombi 90 kW | S154: 34410 | T154: 40947.9 | U154: =ROUND(P154-S154,0) -> 7840 | V154: 9330 | W154: Großraum-Van | X154: PKW | Z154: 2020-03-23 | AQ154: 32-35g CO2 /km; 47,2-55,6km e-Reichweite | AR154: SAIC MAXUS EV 80 (Cargo Mobile) | AT154: 48500 | AU154: 57715 | AV154: Renault Master Ecoline L1H1 2,8 t | AW154: 23290 | AX154: 27715.1 | AY154: 25210 | AZ154: 30000 | BA154: Utility (N1) | BB154: NFZ
N155: Opel Vivaro-E Kombi 75 kWh (alle Versionen) | P155: 47250 | Q155: 56227.5 | R155: Opel Kombi 90 kW | S155: 34410 | T155: 40947.9 | U155: =ROUND(P155-S155,0) -> 12840 | V155: 15280 | W155: Großraum-Van | X155: PKW | AR155: Seat Mii electric | AT155: 17352.94 | AU155: 20650 | AV155: Seat Mii 1.0 (55kW) | AW155: 10134.45 | AX155: 12060 | AY155: =ROUND(AT155-AW155,0) -> 7218 | AZ155: 8590 | BA155: Mini | BB155: PKW | BC155: 43913
N156: Peugeot 508 SW GT Hybrid 225 e-EAT8 | O156: x | P156: 43361.34 | Q156: 51600 | R156: Peugeot 508 SW GT PureTech 225 EAT8 | S156: 39915.97 | T156: 47500 | U156: 3445 | V156: 4100 | W156: Mittelklasse | X156: PKW | Z156: aus EMIN_EFA, 20.08.2020 | AQ156: 32-35g CO2 /km; 47,2-55,6km e-Reichweite | AR156: Skoda Citigo-e iV (alle Versionen) | AT156: 17605.04 | AU156: 20950 | AV156: Skoda Citigo Ambition (55kW) | AW156: 9327.73 | AX156: 11100 | AY156: 8277 | AZ156: 9850 | BA156: Kleinwagen | BB156: PKW
N157: Peugeot 3008 Hybrid 225/300 (alle Versionen) | O157: x | P157: =ROUND(45912.61/1.16,2) -> 39579.84 | Q157: =ROUNDDOWN(P157*1.19,2) -> 47100 | R157: Peugeot 3008 PureTech 180 EAT8 | S157: =ROUND(39966.39/1.16,2) -> 34453.78 | T157: =ROUND(S157*1.19,2) -> 41000 | U157: 5126 | V157: 6100 | W157: Kompaktklasse | X157: PKW | Z157: aus EMIN_EFA, 20.08.2020 | AR157: Skoda Superb iV (alle Versionen) | AS157: x | AT157: 34949.58 | AU157: 41590 | AV157: Skoda Superb Ambition (110kW) | AW157: 26596.64 | AX157: 31650 | AY157: 8353 | AZ157: 9940 | BA157: Mittelklasse | BB157: PKW
N158: Peugeot e-2008 (alle Versionen) | P158: 29621.85 | Q158: 35250 | R158: Peugeot 2008 PureTech 130 Active | S158: 19537.82 | T158: 23250 | U158: 10084 | V158: 12000 | W158: Geländewagen / SUV | X158: PKW | Z158: 2021-01-14
N159: Peugeot e-208 Allure | P159: 27058.82 | Q159: 32200 | R159: Peugeot 208 Allure | S159: 17142.86 | T159: 20400 | U159: 9916 | V159: 11800 | W159: Kleinwagen | X159: PKW | Z159: 2021-01-14
N160: Peugeot E-Expert 50kWh (alle Versionen) | P160: 35250 | Q160: =ROUND(P160*1.19,2) -> 41947.5 | R160: Peugeot Expert L2 Blue HDi 120 90 kW | S160: 26500 | T160: =ROUND(S160*1.19,2) -> 31535 | U160: 8750 | V160: 10413 | W160: Utility (N1) | X160: NFZ | Z160: 2021-06-22
N161: Peugeot E-Expert 75kWh (alle Versionen) | P161: 40250 | Q161: =ROUND(P161*1.19,2) -> 47897.5 | R161: Peugeot Expert L2 Blue HDi 120 90 kW | S161: 26500 | T161: =ROUND(S161*1.19,2) -> 31535 | U161: 13750 | V161: 16363 | W161: Utility (N1) | X161: NFZ | AR161: Skoda Superb Combi iV (alle Versionen) | AS161: x | AT161: 35789.92 | AU161: 42590 | AV161: Skoda Superb Combi Ambition (110kW) | AW161: 27436.97 | AX161: 32650 | AY161: 8353 | AZ161: 9940 | BA161: Mittelklasse | BB161: PKW
N162: Peugeot E-Expert Kombi 50kWh (alle Versionen) | P162: =ROUND(48388.57/1.16,2) -> 41714.28 | Q162: =ROUNDUP(P162*1.19,2) -> 49640 | R162: Peugeot Expert L2 BlueHDi 120 88 kW | S162: =ROUND(34205.38/1.16,2) -> 29487.4 | T162: =ROUNDDOWN(S162*1.19,2) -> 35090 | U162: 12227 | V162: 14550 | W162: Großraum-Van | X162: PKW | AR162: Streetscooter Work 20 (alle Versionen) | AT162: 35950 | AU162: 42780.5 | AV162: Nissan NV200 Kasten | AW162: 15350 | AX162: 18266.5 | AY162: 20600 | AZ162: 24514 | BA162: Utility (N1) | BB162: NFZ
N163: Peugeot E-Traveller 50kWh (alle Versionen) | P163: =ROUND(54490.76/1.16,2) -> 46974.79 | Q163: =ROUND(P163*1.19,2) -> 55900 | R163: Peugeot Expert L2 BlueHDi 120 88 kW | S163: =ROUND(40307.56/1.16,2) -> 34747.9 | T163: =ROUNDDOWN(S163*1.19,2) -> 41350 | U163: 12227 | V163: 14550 | W163: Großraum-Van | X163: PKW | AR163: Streetscooter Work 40 (alle Versionen) | AT163: 40950 | AU163: 48730.5 | AV163: Nissan NV200 Kasten | AW163: 15350 | AX163: 18266.5 | AY163: 25600 | AZ163: 30464 | BA163: Utility (N1) | BB163: NFZ
N164: Peugeot e-Rifter (alle Versionen) | P164: =ROUND(37590/1.19,2) -> 31588.24 | Q164: =ROUNDDOWN(P164*1.19,2) -> 37590 | R164: Peugeot e-Rifter PureTech 110 81 kW | S164: =ROUND(25140/1.19,2) -> 21126.05 | T164: =S164*1.19 -> 25139.9995 | U164: 10462 | V164: 12450 | W164: Großraum-Van | X164: PKW | AR164: Streetscooter Work L 40 (alle Versionen) | AT164: 45450 | AU164: 54085.5 | AV164: Renault Master Ecoline L1H1 2,8 t | AW164: 23290 | AX164: 27715.1 | AY164: 22160 | AZ164: 26370 | BA164: Utility (N1) | BB164: NFZ
N165: Peugeot iOn | P165: =ROUND(Q165/1.19,2) -> 18319.33 | Q165: 21800 | R165: Peugeot 108 5-Türer Vti 72 | S165: =ROUND(T165/1.19,2) -> 10462.18 | T165: 12450 | U165: 7857 | V165: 9350 | W165: Mini | X165: PKW | AR165: Streetscooter Work XL (alle Versionen) | AT165: 67000 | AU165: 79730 | AV165: Ford Transit 350 L4H4 | AW165: 46397 | AX165: 53345.5 | AY165: 20603 | AZ165: 26385 | BA165: Utility (N1) | BB165: NFZ
N166: Peugeot Partner electrique (L1) | P166: =ROUND(Q166/1.19,2) -> 21290 | Q166: 25335.1 | R166: Peugeot Partner (L1) BlueHDi 75 | S166: 16338.66 | T166: 19443 | U166: 4951 | V166: 5892 | W166: Utility (N1) | X166: NFZ | AR166: Tazzari Zero EM2 Space | AT166: 19159.66 | AU166: 22800 | AV166: Mercedes Benz smart 52 kW | AW166: =ROUND(AX166/1.19,2) -> 9382.35 | AX166: 11165 | AY166: 9777 | AZ166: 11635 | BA166: Mini | BB166: PKW | BC166: 43913
N167: Peugeot Partner electrique (L2) | P167: =ROUND(Q167/1.19,2) -> 22340 | Q167: 26584.6 | R167: Peugeot Partner (L2) Blue Hdi 75 | S167: 19079.83 | T167: 22705 | U167: 3260 | V167: 3880 | W167: Utility (N1) | X167: NFZ | AR167: Tesla Model S Standard-Reichweite | AT167: 68890.76 | AU167: 81980 | AV167: BMW 640i GT | AW167: 57899.16 | AX167: 68900 | AY167: 10992 | AZ167: 13080 | BA167: Oberklasse | BB167: PKW
N168: Polaris Ranger EV | P168: =ROUND(Q168/1.19,2) -> 13823.53 | Q168: 16450 | R168: Polaris Ranger 570 | S168: 11420.17 | T168: 13590 | U168: 2403 | V168: 2860 | W168: Utility (N1) | X168: NFZ | AQ168: 28g CO2/km neue Preisliste für Corolla demnächst, Preis aus Konfigurator | AR168: Tesla Model S Maximal-Reichweite | AT168: 73092.44 | AU168: 86980 | AV168: BMW 640i GT | AW168: 57899.16 | AX168: 68900 | AY168: 15193 | AZ168: 18080 | BA168: Oberklasse | BB168: PKW
N169: Polestar 2 | P169: =ROUND(Q169/1.19,2) -> 50336.13 | Q169: 59900 | R169: Volvo S60 T6 AWD | S169: 43865.55 | T169: 52200 | U169: 6471 | V169: 7700 | W169: Mittelklasse | X169: PKW | AR169: Tesla Model S Standard-Reichweite (Einsatz als Taxi) | AT169: 68890.76 | AU169: 81980 | AV169: Mercedes Benz E200 4MATIC | AW169: 43545 | AX169: 51818.55 | AY169: 25346 | AZ169: 30161 | BA169: Oberklasse | BB169: PKW
N170: Porsche Cayenne S E-Hybrid | O170: x | P170: nicht förderfähig gemäß FRL | Q170: nicht förderfähig gemäß FRL | S170: 0 | T170: 0 | U170: 0 | V170: 0 | W170: Oberklasse | X170: PKW | AQ170: alter Preis für koventionelles Fahrzeug, da dieses nicht mehr verfügbar | AR170: Tesla Model S Maximal-Reichweite (Einsatz als Taxi) | AT170: 73092.44 | AU170: 86980 | AV170: Mercedes Benz E400d 4MATIC | AW170: 55050 | AX170: 65509.5 | AY170: 18042 | AZ170: 21471 | BA170: Oberklasse | BB170: PKW
N171: Porsche Panamera 4 E-Hybrid (alle Versionen) | O171: x | P171: nicht förderfähig gemäß FRL | Q171: nicht förderfähig gemäß FRL | S171: 0 | T171: 0 | U171: 0 | V171: 0 | W171: Oberklasse | X171: PKW | AR171: Tesla Model X Maximal-Reichweite | AT171: 76470.59 | AU171: 91000 | AV171: BMW X6 xDrive40D | AW171: 66134.45 | AX171: 78700 | AY171: 10336 | AZ171: 12300 | BA171: Geländewagen / SUV | BB171: PKW
N172: Porsche Panamera Turbo S E-Hybrid (alle Versionen) | O172: x | P172: nicht förderfähig gemäß FRL | Q172: nicht förderfähig gemäß FRL | S172: 0 | T172: 0 | U172: 0 | V172: 0 | W172: Oberklasse | X172: PKW | AQ172: 35-40 g CO2 / km 50km e-Reichweite | AR172: Tesla Model 3 Standard-Reichweite | AT172: 51605.04 | AU172: 58710.08 | AV172: BMW 320i | AW172: 47488.24 | AX172: 54026.48 | AY172: 4117 | AZ172: 4684 | BA172: Mittelklasse | BB172: PKW
N173: Porsche Taycan 4S | P173: =ROUND(Q173/1.19,2) -> 88745.38 | Q173: 105607 | R173: Porsche Panamera 4 | S173: 82145.38 | T173: 97753 | U173: =ROUND(P173-S173,0) -> 6600 | V173: =ROUND(Q173-T173,0) -> 7854 | W173: Oberklasse | X173: PKW | AQ173: Preis für Limo (Variant als "Sonderausstattung"); 55km e-Reichweite | AR173: Tesla Model 3 75D Long Range / Performance | AT173: =ROUND(AU173/1.19,2) -> 47378.15 | AU173: 56380 | AV173: BMW 330i | AW173: =ROUND(AX173/1.19,2) -> 37605.04 | AX173: 44750 | AY173: 9773 | AZ173: 11630 | BA173: Mittelklasse | BB173: PKW
N174: Renault Kangoo Maxi Z.E. 33 2-Sitzer | P174: 31120 | Q174: 37032.8 | R174: Renault Kangoo Rapid Maxi | S174: 18600 | T174: 22134 | U174: 12520 | V174: 14899 | W174: Utility (N1) | X174: NFZ | AR174: Toyota Prius Plug-In Hybrid (alle Ausstattungen) | AS174: x | AT174: 31554.62 | AU174: 37550 | AV174: Toyota Corolla 1.2 Comfort | AW174: 19991.6 | AX174: 23790 | AY174: 11563 | AZ174: 13760 | BA174: Kompaktklasse | BB174: PKW
N175: Renault Kangoo Maxi Z.E. 33 2-Sitzer, Batterie zur Miete | P175: 22020 | Q175: 26203.8 | R175: Renault Kangoo Rapid Maxi | S175: 18600 | T175: 22134 | U175: 3420 | V175: 4070 | W175: Utility (N1) | X175: NFZ | AR175: Volkswagen e-up | AT175: 19306.72 | AU175: 22975 | AV175: Volkswagen move up! 55KW 5 Gang | AW175: 9945.38 | AX175: 11835 | AY175: 9361 | AZ175: 11140 | BA175: Mini | BB175: PKW
N176: Renault Kangoo Maxi Z.E. 33 5-Sitzer | P176: 31920 | Q176: 37984.8 | R176: Renault Kangoo Rapid Maxi (Combi) | S176: 19600 | T176: 23324 | U176: 12320 | V176: 14661 | W176: Utility (N1) | X176: NFZ | AR176: Volkswagen e-load up | AT176: 20079.83 | AU176: 23895 | AV176: Volkswagen load up! | AW176: 9285.71 | AX176: 11050 | AY176: 10794 | AZ176: 12845 | BA176: Mini | BB176: PKW
N177: Renault Kangoo Maxi Z.E. 33 5-Sitzer, Batterie zur Miete | P177: 22820 | Q177: 27155.8 | R177: Renault Kangoo Rapid Maxi (Combi) | S177: 19600 | T177: 23324 | U177: 3220 | V177: 3832 | W177: Utility (N1) | X177: NFZ | AR177: Volkswagen e-Golf | AT177: 30168.07 | AU177: 35900 | AV177: Volkswagen Golf 85 KW TSI CL | AW177: 19760.5 | AX177: 23515 | AY177: 10408 | AZ177: 12385 | BA177: Kompaktklasse | BB177: PKW
N178: Renault Kangoo Z.E. 33 2-Sitzer | P178: 29920 | Q178: 35604.8 | R178: Renault Kangoo Rapid Compact (2-Sitzer) | S178: 14310 | T178: 17028.9 | U178: 15610 | V178: 18576 | W178: Utility (N1) | X178: NFZ | AR178: Volkswagen Golf GTE (PHEV) | AS178: x | AT178: 31008.4 | AU178: 36900 | AV178: Volkswagen Golf 1,5 TSI ACT 110 KW CL | AW178: 22075.63 | AX178: 26270 | AY178: 8933 | AZ178: 10630 | BA178: Kompaktklasse | BB178: PKW
N179: Renault Kangoo Z.E. 33 2-Sitzer, Batterie zur Miete | P179: 20820 | Q179: 24775.8 | R179: Renault Kangoo Rapid Compact (2-Sitzer) | S179: 14310 | T179: 17028.9 | U179: 6510 | V179: 7747 | W179: Utility (N1) | X179: NFZ | AQ179: 43 g CO2 / km, 56 km e-Reichweite | AR179: Volkswagen Passat GTE (PHEV) | AS179: x | AT179: 37184.87 | AU179: 44250 | AV179: Volkswagen Passat 132 KW TSI CL | AW179: 27180.67 | AX179: 32345 | AY179: 10004 | AZ179: 11905 | BA179: Mittelklasse | BB179: PKW
N180: Renault Kangoo Z.E. 33 Doppelkabine | P180: 32320 | Q180: 38460.8 | R180: Renault Kangoo Rapid Maxi (Doppelkabine) | S180: 19847.06 | T180: 23618 | U180: 12473 | V180: 14843 | W180: Utility (N1) | X180: NFZ | AQ180: 45 g CO2 / km 49 km e-Reichweite | AR180: Volkswagen e-Crafter | AT180: 69536 | AU180: 82747.84 | AV180: VW Crafter 30 (75 kW / 102 PS) | AW180: 28916 | AX180: 34410.04 | AY180: 40620 | AZ180: 48338 | BA180: Utility (N1) | BB180: NFZ
N181: Renault Kangoo Z.E. 33 Doppelkabine, Batterie zur Miete | P181: 23220 | Q181: 27631.8 | R181: Renault Kangoo Rapid Maxi (Doppelkabine) | S181: 19847.06 | T181: 23618 | U181: 3373 | V181: 4014 | W181: Utility (N1) | X181: NFZ | AQ181: 43 g CO2/km, 53 km e-Reichweite | AR181: Volvo V60 T6 TWIN ENGINE AWD | AS181: x | AT181: 46932.77 | AU181: 55850 | AV181: Volvo V60 T5 AWD Momentum | AW181: 42016.81 | AX181: 50000 | AY181: 4916 | AZ181: 5850 | BA181: Mittelklasse | BB181: PKW
N182: Renault Master Z.E. Kasten (alle Versionen) | P182: 64000 | Q182: 76160 | R182: Renault Master Kasten (alle Versionen) | S182: 31560 | T182: 37556.4 | U182: 32440 | V182: 38604 | W182: Utility (N1) | X182: NFZ | AQ182: 50 g CO2 / km 46 km e-Reichweite | AR182: Volvo V60 T8 TWIN ENGINE AWD | AS182: x | AT182: 50504.2 | AU182: 60100 | AV182: Volvo V60 T6 AWD Momentum | AW182: 41596.64 | AX182: 49500 | AY182: 8908 | AZ182: 10600 | BA182: Mittelklasse | BB182: PKW
N183: Renault Master Z.E. Plattform-FG (alle Versionen) | P183: 62000 | Q183: 73780 | R183: Renault Master Plattform-FG (alle Versionen) | S183: 28120 | T183: 33462.8 | U183: 33880 | V183: 40317 | W183: Utility (N1) | X183: NFZ | AR183: Volvo S60 T8 TWIN ENGINE AWD | AT183: 49579.83 | AU183: 59000 | AV183: Volvo S60 T6 AWD | AW183: 43865.55 | AX183: 52200 | AY183: 5714 | AZ183: 6800 | BA183: Mittelklasse | BB183: PKW | BC183: 43913
N184: Renault Twizzy 45 - Life, Intens, Cargo (5PS) | P184: 5840.34 | Q184: 6950 | R184: Quad 300 ccm | S184: 2478.99 | T184: 2950 | U184: 3361 | V184: 4000 | W184: Leichtfahrzeug | X184: LFZ | AQ184: 44 g CO2 /km, 42 km e-Reichweite | AR184: Volvo S90 T8 TWIN ENGINE AWD | AS184: x | AT184: 59705.88 | AU184: 71050 | AV184: Volvo S90 T6 AWD Momentum | AW184: 49033.61 | AX184: 58350 | AY184: 10672 | AZ184: 12700 | BA184: Obere Mittelklasse | BB184: PKW
N185: Renault Twizzy Life - Intens, Cargo (18PS) | P185: 6428.57 | Q185: 7650 | R185: Quad 400 ccm | S185: 3067.23 | T185: 3650 | U185: 3361 | V185: 4000 | W185: Leichtfahrzeug | X185: LFZ | AQ185: 52 g CO2 / km 43 km e-Reichweite | AR185: Volvo V90 T8 TWIN ENGINE AWD | AS185: x | AT185: 62268.91 | AU185: 74100 | AV185: Volvo V90 T6 AWD Momentum | AW185: 51596.64 | AX185: 61400 | AY185: 10672 | AZ185: 12700 | BA185: Obere Mittelklasse | BB185: PKW
N186: Renault Zoe (52 kWh, 108 PS) | P186: 26882.35 | Q186: 31990 | R186: Renault Clio Limited 5-türig | S186: 13016.81 | T186: 15490 | U186: 13866 | V186: 16500 | W186: Kleinwagen | X186: PKW | AQ186: 57 g CO2 / km 37 km e-Reichweite | AR186: Volvo XC 40 T5 TWIN ENGINE DKG Momentum Pro | AS186: x | AT186: 41176.47 | AU186: 49000 | AV186: Volvo XC 40 T4 AWD Momentum Pro | AW186: 36260.5 | AX186: 43150 | AY186: 4916 | AZ186: 5850 | BA186: Geländewagen / SUV | BB186: PKW
N187: Renault Zoe (52 kWh, 108 PS), Batterie zur Miete | P187: 20084.03 | Q187: 23900 | R187: Renault Clio Limited 5-türig | S187: 13016.81 | T187: 15490 | U187: 7067 | V187: 8410 | W187: Kleinwagen | X187: PKW | AR187: Volvo XC 60 T8 TWIN ENGINE | AS187: x | AT187: nicht förderfähig gemäß FRL | AU187: nicht förderfähig gemäß FRL | AV187: Volvo XC 60 T6 AWD Momentum | BA187: Geländewagen / SUV | BB187: PKW
N188: Renault Zoe (52 kWh, 135 PS) | P188: 30243.7 | Q188: 35990 | R188: Renault Clio TCe 130 EDC GPF (130 PS) | S188: 17722.69 | T188: 21090 | U188: 12521 | V188: 14900 | W188: Kleinwagen | X188: PKW | AR188: Volvo XC 90 T8 TWIN ENGINE AWD | AS188: x | AT188: nicht förderfähig gemäß FRL | AU188: nicht förderfähig gemäß FRL | AV188: Volvo XC 90 T6 AWD Momentum | BA188: Geländewagen / SUV | BB188: PKW
N189: Renault Zoe (52 kWh, 135 PS), Batterie zur Miete | P189: 23445.38 | Q189: 27900 | R189: Renault Clio TCe 130 EDC GPF (130 PS) | S189: 17722.69 | T189: 21090 | U189: 5723 | V189: 6810 | W189: Kleinwagen | X189: PKW | AR189: Zhidou D2S (17 KWh) | AT189: =ROUND(AU189/1.19,2) -> 15546.22 | AU189: 18500 | AV189: Hyundai I10 Trend (49 kWh) | AW189: =ROUND(AX189/1.19,2) -> 11226.89 | AX189: 13360 | AY189: =ROUND(AT189-AW189,0) -> 4319 | AZ189: =ROUND(AU189-AX189,0) -> 5140 | BA189: Mini | BB189: PKW
N190: Renault Zoe Life (22 kWh) | P190: 25126.05 | Q190: 29900 | R190: Renault Clio Limited 5-türig | S190: 13016.81 | T190: 15490 | U190: 12109 | V190: 14410 | W190: Kleinwagen | X190: PKW | Z190: 2020-12-18
N191: Renault Zoe Life (22 kWh), Batterie zur Miete | P191: 18403.36 | Q191: 21900 | R191: Renault Clio Limited 5-türig | S191: 13016.81 | T191: 15490 | U191: 5387 | V191: 6410 | W191: Kleinwagen | X191: PKW | AR191: Zhidou D2S (27 KWh) | AT191: =ROUND(AU191/1.19,2) -> 18067.23 | AU191: 21500 | AV191: Hyundai I10 Style (64 kWh) | AW191: =ROUND(AX191/1.19,2) -> 12823.53 | AX191: 15260 | AY191: =ROUND(AT191-AW191,0) -> 5244 | AZ191: =ROUND(AU191-AX191,0) -> 6240 | BA191: Mini | BB191: PKW
N192: Renault Zoe Life (41 kWh) | P192: 28655.46 | Q192: 34100 | R192: Renault Clio Limited 5-türig | S192: 13016.81 | T192: 15490 | U192: 15639 | V192: 18610 | W192: Kleinwagen | X192: PKW | Z192: 2020-03-23
N193: Renault Zoe Life (41 kWh), Batterie zur Miete | P193: 21932.77 | Q193: 26100 | R193: Renault Clio Limited 5-türig | S193: 13016.81 | T193: 15490 | U193: 8916 | V193: 10610 | W193: Kleinwagen | X193: PKW | Z193: 2020-12-18
N194: Renault Twingo Electric Vibes | P194: =ROUND(24165.04/1.16,2) -> 20831.93 | Q194: =ROUND(P194*1.19,2) -> 24790 | R194: Renault Twingo SCe 75 Intens | S194: =ROUND(13637.31/1.16,2) -> 11756.3 | T194: =ROUND(S194*1.19,2) -> 13990 | U194: =ROUND(P194-S194,0) -> 9076 | V194: =ROUND(Q194-T194,0) -> 10800 | W194: Kompaktklasse | X194: PKW | AR194: Fahrzeugsegment Leichtfahrzeug | AT194: * | AU194: * | AV194: z.B. Renault Twizzy Life, Aixam eCity… | AW194: * | AX194: * | AY194: =ROUND(AZ194/1.19,0) -> 7507 | AZ194: =AY178 -> 8933 | BA194: Leichtfahrzeug | BB194: LFZ | BC194: 43914
N195: SAIC MAXUS EV 80 (Cargo Mobile) | P195: 48500 | Q195: 57715 | R195: Renault Master Ecoline L1H1 2,8 t | S195: 23290 | T195: 27715.1 | U195: 25210 | V195: 30000 | W195: Utility (N1) | X195: NFZ | Z195: 2020-12-18
N196: Seat Mii electric | P196: 17352.94 | Q196: 20650 | R196: Seat Mii 1.0 (55kW) | S196: 10134.45 | T196: 12060 | U196: 7218 | V196: 8590 | W196: Mini | X196: PKW | Z196: 2020-12-18
N197: Seat Leon 1.4 e-HYBRID XCELLENCE (alle Varianten) | O197: x | P197: =34390.59/1.16 -> 29647.06034 | Q197: =ROUND(P197*1.19,2) -> 35280 | R197: Seat Leon 1.5 TSI 6-Gang XCELLENCE | S197: =26095.13/1.16 -> 22495.80172 | T197: =ROUND(S197*1.19,2) -> 26770 | U197: 7151 | V197: 8510 | W197: Mittelklasse | X197: PKW | Z197: 2020-12-18
N198: Skoda Citigo-e iV (alle Versionen) | P198: 17605.04 | Q198: 20950 | R198: Skoda Citigo Ambition (55kW) | S198: 9327.73 | T198: 11100 | U198: 8277 | V198: 9850 | W198: Kleinwagen | X198: PKW | Z198: 2020-12-18
N199: Skoda ENYAQ iV 50 (alle Versionen) | P199: =ROUND(33800/1.19,2) -> 28403.36 | Q199: =ROUND(P199*1.19,2) -> 33800 | R199: Skoda Kodiaq 1,5 l TSI ACT1 110 kW, 6 Gang | S199: =ROUND(29000/1.19,2) -> 24369.75 | T199: =ROUND(S199*1.19,2) -> 29000 | U199: 4034 | V199: 4800 | W199: Geländewagen / SUV | X199: PKW | AR199: Fahrzeugsegment Kleinwagen | AT199: * | AU199: * | AV199: Z.B. BMW i3, Renault Zoe… | AW199: * | AX199: * | AY199: =ROUND(AZ199/1.19,0) -> 15051 | AZ199: 17911 | BA199: Kleinwagen | BB199: PKW | BC199: 43913
N200: Skoda ENYAQ iV 60 (alle Versionen) | P200: =ROUND(38850/1.19,2) -> 32647.06 | Q200: =ROUND(P200*1.19,2) -> 38850 | R200: Skoda Kodiaq 1,5 l TSI ACT1 110 kW, 6 Gang | S200: =ROUND(29000/1.19,2) -> 24369.75 | T200: =ROUND(S200*1.19,2) -> 29000 | U200: 8277 | V200: 9850 | W200: Geländewagen / SUV | X200: PKW | AR200: Fahrzeugsegment Kompaktklasse | AT200: * | AU200: * | AV200: z.B. Nissan Leaf, VW e-Golf, Opel Ampera-E… | AW200: * | AX200: * | AY200: =ROUND(AZ200/1.19,0) -> 2903 | AZ200: =AZ74 -> 3454 | BA200: Kompaktklasse | BB200: PKW | BC200: 43913
N201: Skoda ENYAQ iV 80 (alle Versionen) | P201: =ROUND(43950/1.19,2) -> 36932.77 | Q201: =ROUND(P201*1.19,2) -> 43950 | R201: Skoda Kodiaq 1,5 l TSI ACT1 110 kW, 6 Gang | S201: =ROUND(29000/1.19,2) -> 24369.75 | T201: =ROUND(S201*1.19,2) -> 29000 | U201: 12563 | V201: 14950 | W201: Geländewagen / SUV | X201: PKW | AR201: Fahrzeugsegment Mini | AT201: * | AU201: * | AV201: z.B. VW e-up, Mitsubishi EV… | AW201: * | AX201: * | AY201: 13819 | AZ201: 16445 | BA201: Mini | BB201: PKW | BC201: 43913
... 61 more rows

Sheet LKW, Busse, Sonderfahrzeuge
A1: Ermittlung der förderfähigen Ausgaben für LKW, Busse und Sonder-Fahrzeuge | K1: FKZ:
A2: Hinweise:
A3: Hierfür müssen Sie entsprechende Angebote für das E-Fahrzeug und ein Referenzfahrzeug eingeholt haben. Diese Angebote sind beizufügen.
A4: =IF(Fahrzeuge!C1="","Bitte geben Sie auf der Registerkarte 'Fahrzeuge' an, ob Sie zum Vorsteuerabzug berechtigt sind","") -> Bitte geben Sie auf der Registerkarte 'Fahrzeuge' an, ob Sie zum Vorsteuerabzug berechtigt sind
A6: Pos. | B6: Typ E-Fahrzeug | C6: =IF(Fahrzeuge!$C$1="nein","Bruttopreis E-Fahrzeug laut beigefügtem Angebot *",IF(Fahrzeuge!$C$1="ja","Nettopreis E-Fahrzeug laut beigefügtem Angebot *","Bitte wählen sie aus, ob sie zum Vorsteuerabzug berechtigt sind!")) -> Bitte wählen sie aus, ob sie zum Vorsteuerabzug berechtigt sind! | D6: Typ Referenzfahrzeug | E6: =IF(Fahrzeuge!$C$1="nein","Bruttopreis Referenzfahrzeug laut beigefügtem Angebot *",IF(Fahrzeuge!$C$1="ja","Nettopreis Referenzfahrzeug laut beigefügtem Angebot *","Bitte wählen sie aus, ob sie zum Vorsteuerabzug berechtigt sind!")) -> Bitte wählen sie aus, ob sie zum Vorsteuerabzug berechtigt sind! | F6: =IF(Fahrzeuge!$C$1="nein","Förderfähige Ausgaben pro Fahrzeug (brutto)",IF(Fahrzeuge!$C$1="ja","Förderfähige Ausgaben pro Fahrzeug (netto)","Bitte wählen sie aus, ob sie zum Vorsteuerabzug berechtigt sind!")) -> Bitte wählen sie aus, ob sie zum Vorsteuerabzug berechtigt sind! | G6: Anzahl zu beschaffender Fahrzeuge des Typs | H6: erwartete durchschnittliche Jahres-Fahrleistung in km* | I6: * alternativ: erwartete Jahresbetriebs-stunden | J6: Förderfähige Ausgaben | K6: Korrekturfeld PtJ
A7: 1 | F7: =IF(B7>"",IF($A$4="",C7-E7,$F$6),"") ->  | J7: =IF(B7>"",F7*G7,"") -> 
A9: 2 | F9: =IF(B9>"",IF($A$4="",C9-E9,$F$6),"") ->  | J9: =IF(B9>"",F9*G9,"") -> 
A11: 3
A13: 4
A15: 5
A17: 6
A19: 7
A21: 8
A23: 9
A25: 10
A27: Summe | J27: =SUM(J7:J25) -> 0

Sheet Ladeinfrastruktur
A1: Ermittlung der förderfähigen Pauschalen für Ladeinfrastruktur | F1: FKZ:
A2: Hinweis:
A3: =IF(Fahrzeuge!C1="","Bitte geben Sie auf der Registerkarte 'Fahrzeuge' an, ob Sie zum Vorsteuerabzug berechtigt sind","") -> Bitte geben Sie auf der Registerkarte 'Fahrzeuge' an, ob Sie zum Vorsteuerabzug berechtigt sind
A5: Pos. | B5: Typ Ladeinfrastruktur (LIS)* [Auswahlbox] | C5: =IF(Fahrzeuge!$C$1="nein","Förderfähige Ausgaben pro Ladesäule (brutto)",IF(Fahrzeuge!$C$1="ja","Förderfähige Ausgaben pro Ladesäule (netto)","Bitte wählen sie aus, ob sie zum Vorsteuerabzug berechtigt sind!")) -> Bitte wählen sie aus, ob sie zum Vorsteuerabzug berechtigt sind! | D5: Anzahl zu beschaffender Ladesäulen des Typs | E5: Förderfähige Ausgaben | F5: Korrekturfeld PtJ | I5: Typ Ladeinfrastruktur | J5: Ausgabenpauschale netto | K5: Ausgabenpauschale netto
A6: 1 | C6: =IF($B6>0,IF(Fahrzeuge!$C$1="nein",VLOOKUP($B6,$I$6:$K$15,3,0),IF(Fahrzeuge!$C$1="ja",VLOOKUP($B6,$I$6:$K$15,2,0),"Bitte wählen sie aus, ob sie zum Vorsteuerabzug berechtigt sind!")),"") ->  | E6: =IF(AND(B6<>"",D6>0),C6*D6,"") ->  | I6: öff. zugängl. [AC] ≥ 3,7 kW (1 Ladepunkt) | J6: 2000 | K6: =J6*1.19 -> 2380
I7: öff. zugängl. [AC] ≥ 11 kW (min. 2 Ladepunkte) | J7: 5000 | K7: =J7*1.19 -> 5950
A8: 2 | C8: =IF($B8>0,IF(Fahrzeuge!$C$1="nein",VLOOKUP($B8,$I$6:$K$15,3,0),IF(Fahrzeuge!$C$1="ja",VLOOKUP($B8,$I$6:$K$15,2,0),"Bitte wählen sie aus, ob sie zum Vorsteuerabzug berechtigt sind!")),"") ->  | E8: =IF(AND(B8<>"",D8>0),C8*D8,"") ->  | I8: öff. zugängl. [DC] ≤ 50 kW | J8: 20000 | K8: 23800
I9: öff. zugängl. [DC] 51 kW-149 kW | J9: 35000 | K9: 41650
A10: 3 | C10: =IF($B10>0,IF(Fahrzeuge!$C$1="nein",VLOOKUP($B10,$I$6:$K$15,3,0),IF(Fahrzeuge!$C$1="ja",VLOOKUP($B10,$I$6:$K$15,2,0),"Bitte wählen sie aus, ob sie zum Vorsteuerabzug berechtigt sind!")),"") ->  | E10: =IF(AND(B10<>"",D10>0),C10*D10,"") ->  | I10: öff. zugängl. [DC] ≥ 150 kW | J10: 50000 | K10: 59500
I11: nicht öff. zugängl. [AC] ≥ 3,7 kW (1 Ladepunkt) | J11: 900 | K11: 1071
A12: 4 | C12: =IF($B12>0,IF(Fahrzeuge!$C$1="nein",VLOOKUP($B12,$I$6:$K$15,3,0),IF(Fahrzeuge!$C$1="ja",VLOOKUP($B12,$I$6:$K$15,2,0),"Bitte wählen sie aus, ob sie zum Vorsteuerabzug berechtigt sind!")),"") ->  | E12: =IF(AND(B12<>"",D12>0),C12*D12,"") ->  | I12: nicht öff. zugängl. [AC] ≥ 11 kW (min. 2 Ladepunkte) | J12: 3000 | K12: 3570
I13: nicht öff. zugängl. [DC] ≤ 50 kW | J13: 20000 | K13: 23800
A14: 5 | C14: =IF($B14>0,IF(Fahrzeuge!$C$1="nein",VLOOKUP($B14,$I$6:$K$15,3,0),IF(Fahrzeuge!$C$1="ja",VLOOKUP($B14,$I$6:$K$15,2,0),"Bitte wählen sie aus, ob sie zum Vorsteuerabzug berechtigt sind!")),"") ->  | E14: =IF(AND(B14<>"",D14>0),C14*D14,"") ->  | I14: nicht öff. zugängl. [DC] 51 kW-149 kW | J14: 35000 | K14: 41650
I15: nicht öff. zugängl. [DC] ≥ 150 kW | J15: 50000 | K15: 59500
A16: 6 | C16: =IF($B16>0,IF(Fahrzeuge!$C$1="nein",VLOOKUP($B16,$I$6:$K$15,3,0),IF(Fahrzeuge!$C$1="ja",VLOOKUP($B16,$I$6:$K$15,2,0),"Bitte wählen sie aus, ob sie zum Vorsteuerabzug berechtigt sind!")),"") ->  | E16: =IF(AND(B16<>"",D16>0),C16*D16,"") -> 
A18: 7 | C18: =IF($B18>0,IF(Fahrzeuge!$C$1="nein",VLOOKUP($B18,$I$6:$K$15,3,0),IF(Fahrzeuge!$C$1="ja",VLOOKUP($B18,$I$6:$K$15,2,0),"Bitte wählen sie aus, ob sie zum Vorsteuerabzug berechtigt sind!")),"") ->  | E18: =IF(AND(B18<>"",D18>0),C18*D18,"") -> 
A20: 8 | C20: =IF($B20>0,IF(Fahrzeuge!$C$1="nein",VLOOKUP($B20,$I$6:$K$15,3,0),IF(Fahrzeuge!$C$1="ja",VLOOKUP($B20,$I$6:$K$15,2,0),"Bitte wählen sie aus, ob sie zum Vorsteuerabzug berechtigt sind!")),"") ->  | E20: =IF(AND(B20<>"",D20>0),C20*D20,"") -> 
A22: 9 | C22: =IF($B22>0,IF(Fahrzeuge!$C$1="nein",VLOOKUP($B22,$I$6:$K$15,3,0),IF(Fahrzeuge!$C$1="ja",VLOOKUP($B22,$I$6:$K$15,2,0),"Bitte wählen sie aus, ob sie zum Vorsteuerabzug berechtigt sind!")),"") ->  | E22: =IF(AND(B22<>"",D22>0),C22*D22,"") -> 
A24: 10 | C24: =IF($B24>0,IF(Fahrzeuge!$C$1="nein",VLOOKUP($B24,$I$6:$K$15,3,0),IF(Fahrzeuge!$C$1="ja",VLOOKUP($B24,$I$6:$K$15,2,0),"Bitte wählen sie aus, ob sie zum Vorsteuerabzug berechtigt sind!")),"") ->  | E24: =IF(AND(B24<>"",D24>0),C24*D24,"") -> 
A26: Summe | E26: =SUM(E6:E24) -> 0
A28: * öff. zugängl.: | B28: öffentlich zugängliche Ladepunkte im Sinne der Verordnung über technische Mindestanforderungen an den sicheren und interoperablen Aufbau und Betrieb von öffentlich zugänglichen Ladepunkten für Elektromobile
A29: * nicht. öff. zugängl.: | B29: LIS ist für die Öffentlichkeit nicht zugänglich
A30: * DC : | B30: Gleichstrom-Ladeinfrastruktur
A31: * AC : | B31: Wechselstrom-Ladeinfrastruktur

Sheet spezielle Ladeinfrastruktur
A1: Ermittlung der förderfähigen Ausgaben für Ladeinfrastruktur die nicht in der Registerkarte "Ladeinfrastruktur" aufgeführt wird | G1: FKZ:
A2: Hinweise:
A3: Hierfür müssen Sie entsprechende Angebote für die Ladeinfrastruktur eingeholt haben. Diese Angebote sind beizufügen.
A4: =IF(Fahrzeuge!C1="","Bitte geben Sie auf der Registerkarte 'Fahrzeuge' an, ob Sie zum Vorsteuerabzug berechtigt sind","") -> Bitte geben Sie auf der Registerkarte 'Fahrzeuge' an, ob Sie zum Vorsteuerabzug berechtigt sind
A6: Pos. | B6: Typ Ladeinfrastruktur (LIS) | C6: =IF(Fahrzeuge!$C$1="nein","Bruttopreis LIS laut beigefügtem Angebot *",IF(Fahrzeuge!$C$1="ja","Nettopreis LIS laut beigefügtem Angebot *","Bitte wählen sie aus, ob sie zum Vorsteuerabzug berechtigt sind!")) -> Bitte wählen sie aus, ob sie zum Vorsteuerabzug berechtigt sind! | D6: Anzahl zu beschaffender LIS dieses Typs | E6: Förderfähige Ausgaben | F6: Korrekturfeld PtJ
A7: 1 | E7: =IF(Fahrzeuge!$C$1>"",IF(AND(B7<>"",C7>0),D7*C7,""),"Bitte wählen sie aus, ob sie zum Vorsteuerabzug berechtigt sind!") -> Bitte wählen sie aus, ob sie zum Vorsteuerabzug berechtigt sind!
A9: 2 | E9: =IF(Fahrzeuge!$C$1>"",IF(AND(B9<>"",C9>0),D9*C9,""),"Bitte wählen sie aus, ob sie zum Vorsteuerabzug berechtigt sind!") -> Bitte wählen sie aus, ob sie zum Vorsteuerabzug berechtigt sind!
A11: 3 | E11: =IF(Fahrzeuge!$C$1>"",IF(AND(B11<>"",C11>0),D11*C11,""),"Bitte wählen sie aus, ob sie zum Vorsteuerabzug berechtigt sind!") -> Bitte wählen sie aus, ob sie zum Vorsteuerabzug berechtigt sind!
A13: 4 | E13: =IF(Fahrzeuge!$C$1>"",IF(AND(B13<>"",C13>0),D13*C13,""),"Bitte wählen sie aus, ob sie zum Vorsteuerabzug berechtigt sind!") -> Bitte wählen sie aus, ob sie zum Vorsteuerabzug berechtigt sind!
A15: 5 | E15: =IF(Fahrzeuge!$C$1>"",IF(AND(B15<>"",C15>0),D15*C15,""),"Bitte wählen sie aus, ob sie zum Vorsteuerabzug berechtigt sind!") -> Bitte wählen sie aus, ob sie zum Vorsteuerabzug berechtigt sind!
A17: 6 | E17: =IF(Fahrzeuge!$C$1>"",IF(AND(B17<>"",C17>0),D17*C17,""),"Bitte wählen sie aus, ob sie zum Vorsteuerabzug berechtigt sind!") -> Bitte wählen sie aus, ob sie zum Vorsteuerabzug berechtigt sind!
A19: 7 | E19: =IF(Fahrzeuge!$C$1>"",IF(AND(B19<>"",C19>0),D19*C19,""),"Bitte wählen sie aus, ob sie zum Vorsteuerabzug berechtigt sind!") -> Bitte wählen sie aus, ob sie zum Vorsteuerabzug berechtigt sind!
A21: 8 | E21: =IF(Fahrzeuge!$C$1>"",IF(AND(B21<>"",C21>0),D21*C21,""),"Bitte wählen sie aus, ob sie zum Vorsteuerabzug berechtigt sind!") -> Bitte wählen sie aus, ob sie zum Vorsteuerabzug berechtigt sind!
A23: 9 | E23: =IF(Fahrzeuge!$C$1>"",IF(AND(B23<>"",C23>0),D23*C23,""),"Bitte wählen sie aus, ob sie zum Vorsteuerabzug berechtigt sind!") -> Bitte wählen sie aus, ob sie zum Vorsteuerabzug berechtigt sind!
A25: 10 | E25: =IF(Fahrzeuge!$C$1>"",IF(AND(B25<>"",C25>0),D25*C25,""),"Bitte wählen sie aus, ob sie zum Vorsteuerabzug berechtigt sind!") -> Bitte wählen sie aus, ob sie zum Vorsteuerabzug berechtigt sind!
A27: Summe | E27: =IF(C7>0,SUM(E7:E25),"") -> 

Sheet Vorlage für AZA
A1: Hinweis:
A3: Vorlage zum Übertragen der Daten aus dieser Tabelle in den AZA in easyOnline, die Anzahl der zu beschaffenden Fzg. / LIS muss ggf. auf die Anschaffungsjahre aufgeteilt werden
A5: =IF(Fahrzeuge!$C$1="nein","Der Antragsteller ist nicht zum Vorsteuerabzug berechtigt.",IF(Fahrzeuge!$C$1="ja","Der Antragsteller ist zum Vorsteuerabzug berechtigt.","Bitte wählen sie aus, ob sie zum Vorsteuerabzug berechtigt sind!")) -> Bitte wählen sie aus, ob sie zum Vorsteuerabzug berechtigt sind!
A6: (sollte diese Aussage nicht zutreffen, wählen Sie bitte die entsprechende Option auf der Registerkarte "Fahrzeuge")
A8: Gesamtfinanzierung - Gegenstände und andere Investitionen von mehr als 410 € im Einzelfall
A10: lfd. Nr. | B10: Bezeichnung | C10: Zuwendungsfähige Ausgaben / Stück* | D10: Anzahl* | E10: F0833 Betrag €
A11: =IF(Fahrzeuge!$B13>"",Fahrzeuge!A13,0) -> 0 | B11: =IF(Fahrzeuge!$B13>"",CONCATENATE(LEFT(RIGHT(Fahrzeuge!C13,4),3)," ",Fahrzeuge!B13),"") ->  | C11: =IF(Fahrzeuge!$B13>"",Fahrzeuge!G13,"") ->  | D11: =IF(Fahrzeuge!$B13>"",Fahrzeuge!H13,"") ->  | E11: =IF(Fahrzeuge!$B13>"",Fahrzeuge!K13,"") -> 
A12: =IF(Fahrzeuge!B14>"",Fahrzeuge!A14,A11) -> 0 | B12: =IF(Fahrzeuge!$B14>"",CONCATENATE(LEFT(RIGHT(Fahrzeuge!C14,4),3)," ",Fahrzeuge!B14),"") ->  | C12: =IF(Fahrzeuge!$B14>"",Fahrzeuge!G14,"") ->  | D12: =IF(Fahrzeuge!$B14>"",Fahrzeuge!H14,"") ->  | E12: =IF(Fahrzeuge!$B14>"",Fahrzeuge!K14,"") -> 
A13: =IF(Fahrzeuge!B15>"",Fahrzeuge!A15,A12) -> 0 | B13: =IF(Fahrzeuge!$B15>"",CONCATENATE(LEFT(RIGHT(Fahrzeuge!C15,4),3)," ",Fahrzeuge!B15),"") ->  | C13: =IF(Fahrzeuge!$B15>"",Fahrzeuge!G15,"") ->  | D13: =IF(Fahrzeuge!$B15>"",Fahrzeuge!H15,"") ->  | E13: =IF(Fahrzeuge!$B15>"",Fahrzeuge!K15,"") -> 
A14: =IF(Fahrzeuge!B16>"",Fahrzeuge!A16,A13) -> 0 | B14: =IF(Fahrzeuge!$B16>"",CONCATENATE(LEFT(RIGHT(Fahrzeuge!C16,4),3)," ",Fahrzeuge!B16),"") ->  | C14: =IF(Fahrzeuge!$B16>"",Fahrzeuge!G16,"") ->  | D14: =IF(Fahrzeuge!$B16>"",Fahrzeuge!H16,"") ->  | E14: =IF(Fahrzeuge!$B16>"",Fahrzeuge!K16,"") -> 
A15: =IF(Fahrzeuge!B17>"",Fahrzeuge!A17,A14) -> 0 | B15: =IF(Fahrzeuge!$B17>"",CONCATENATE(LEFT(RIGHT(Fahrzeuge!C17,4),3)," ",Fahrzeuge!B17),"") ->  | C15: =IF(Fahrzeuge!$B17>"",Fahrzeuge!G17,"") ->  | D15: =IF(Fahrzeuge!$B17>"",Fahrzeuge!H17,"") ->  | E15: =IF(Fahrzeuge!$B17>"",Fahrzeuge!K17,"") -> 
A16: =IF(Fahrzeuge!B18>"",Fahrzeuge!A18,A15) -> 0 | B16: =IF(Fahrzeuge!$B18>"",CONCATENATE(LEFT(RIGHT(Fahrzeuge!C18,4),3)," ",Fahrzeuge!B18),"") ->  | C16: =IF(Fahrzeuge!$B18>"",Fahrzeuge!G18,"") ->  | D16: =IF(Fahrzeuge!$B18>"",Fahrzeuge!H18,"") ->  | E16: =IF(Fahrzeuge!$B18>"",Fahrzeuge!K18,"") -> 
A17: =IF(Fahrzeuge!B19>"",Fahrzeuge!A19,A16) -> 0 | B17: =IF(Fahrzeuge!$B19>"",CONCATENATE(LEFT(RIGHT(Fahrzeuge!C19,4),3)," ",Fahrzeuge!B19),"") ->  | C17: =IF(Fahrzeuge!$B19>"",Fahrzeuge!G19,"") ->  | D17: =IF(Fahrzeuge!$B19>"",Fahrzeuge!H19,"") ->  | E17: =IF(Fahrzeuge!$B19>"",Fahrzeuge!K19,"") -> 
A18: =IF(Fahrzeuge!B20>"",Fahrzeuge!A20,A17) -> 0 | B18: =IF(Fahrzeuge!$B20>"",CONCATENATE(LEFT(RIGHT(Fahrzeuge!C20,4),3)," ",Fahrzeuge!B20),"") ->  | C18: =IF(Fahrzeuge!$B20>"",Fahrzeuge!G20,"") ->  | D18: =IF(Fahrzeuge!$B20>"",Fahrzeuge!H20,"") ->  | E18: =IF(Fahrzeuge!$B20>"",Fahrzeuge!K20,"") -> 
A19: =IF(Fahrzeuge!B21>"",Fahrzeuge!A21,A18) -> 0 | B19: =IF(Fahrzeuge!$B21>"",CONCATENATE(LEFT(RIGHT(Fahrzeuge!C21,4),3)," ",Fahrzeuge!B21),"") ->  | C19: =IF(Fahrzeuge!$B21>"",Fahrzeuge!G21,"") ->  | D19: =IF(Fahrzeuge!$B21>"",Fahrzeuge!H21,"") ->  | E19: =IF(Fahrzeuge!$B21>"",Fahrzeuge!K21,"") -> 
A20: =IF(Fahrzeuge!B22>"",Fahrzeuge!A22,A19) -> 0 | B20: =IF(Fahrzeuge!$B22>"",CONCATENATE(LEFT(RIGHT(Fahrzeuge!C22,4),3)," ",Fahrzeuge!B22),"") ->  | C20: =IF(Fahrzeuge!$B22>"",Fahrzeuge!G22,"") ->  | D20: =IF(Fahrzeuge!$B22>"",Fahrzeuge!H22,"") ->  | E20: =IF(Fahrzeuge!$B22>"",Fahrzeuge!K22,"") -> 
A21: =IF(Fahrzeuge!B23>"",Fahrzeuge!A23,A20) -> 0 | B21: =IF(Fahrzeuge!$B23>"",CONCATENATE(LEFT(RIGHT(Fahrzeuge!C23,4),3)," ",Fahrzeuge!B23),"") ->  | C21: =IF(Fahrzeuge!$B23>"",Fahrzeuge!G23,"") ->  | D21: =IF(Fahrzeuge!$B23>"",Fahrzeuge!H23,"") ->  | E21: =IF(Fahrzeuge!$B23>"",Fahrzeuge!K23,"") -> 
A22: =IF(Fahrzeuge!B24>"",Fahrzeuge!A24,A21) -> 0 | B22: =IF(Fahrzeuge!$B24>"",CONCATENATE(LEFT(RIGHT(Fahrzeuge!C24,4),3)," ",Fahrzeuge!B24),"") ->  | C22: =IF(Fahrzeuge!$B24>"",Fahrzeuge!G24,"") ->  | D22: =IF(Fahrzeuge!$B24>"",Fahrzeuge!H24,"") ->  | E22: =IF(Fahrzeuge!$B24>"",Fahrzeuge!K24,"") -> 
A23: =IF(Fahrzeuge!B25>"",Fahrzeuge!A25,A22) -> 0 | B23: =IF(Fahrzeuge!$B25>"",CONCATENATE(LEFT(RIGHT(Fahrzeuge!C25,4),3)," ",Fahrzeuge!B25),"") ->  | C23: =IF(Fahrzeuge!$B25>"",Fahrzeuge!G25,"") ->  | D23: =IF(Fahrzeuge!$B25>"",Fahrzeuge!H25,"") ->  | E23: =IF(Fahrzeuge!$B25>"",Fahrzeuge!K25,"") -> 
A24: =IF(Fahrzeuge!B26>"",Fahrzeuge!A26,A23) -> 0 | B24: =IF(Fahrzeuge!$B26>"",CONCATENATE(LEFT(RIGHT(Fahrzeuge!C26,4),3)," ",Fahrzeuge!B26),"") ->  | C24: =IF(Fahrzeuge!$B26>"",Fahrzeuge!G26,"") ->  | D24: =IF(Fahrzeuge!$B26>"",Fahrzeuge!H26,"") ->  | E24: =IF(Fahrzeuge!$B26>"",Fahrzeuge!K26,"") -> 
A25: =IF(Fahrzeuge!B27>"",Fahrzeuge!A27,A24) -> 0 | B25: =IF(Fahrzeuge!$B27>"",CONCATENATE(LEFT(RIGHT(Fahrzeuge!C27,4),3)," ",Fahrzeuge!B27),"") ->  | C25: =IF(Fahrzeuge!$B27>"",Fahrzeuge!G27,"") ->  | D25: =IF(Fahrzeuge!$B27>"",Fahrzeuge!H27,"") ->  | E25: =IF(Fahrzeuge!$B27>"",Fahrzeuge!K27,"") -> 
A26: =IF(Fahrzeuge!B28>"",Fahrzeuge!A28,A25) -> 0 | B26: =IF(Fahrzeuge!$B28>"",CONCATENATE(LEFT(RIGHT(Fahrzeuge!C28,4),3)," ",Fahrzeuge!B28),"") ->  | C26: =IF(Fahrzeuge!$B28>"",Fahrzeuge!G28,"") ->  | D26: =IF(Fahrzeuge!$B28>"",Fahrzeuge!H28,"") ->  | E26: =IF(Fahrzeuge!$B28>"",Fahrzeuge!K28,"") -> 
A27: =IF(Fahrzeuge!B29>"",Fahrzeuge!A29,A26) -> 0 | B27: =IF(Fahrzeuge!$B29>"",CONCATENATE(LEFT(RIGHT(Fahrzeuge!C29,4),3)," ",Fahrzeuge!B29),"") ->  | C27: =IF(Fahrzeuge!$B29>"",Fahrzeuge!G29,"") ->  | D27: =IF(Fahrzeuge!$B29>"",Fahrzeuge!H29,"") ->  | E27: =IF(Fahrzeuge!$B29>"",Fahrzeuge!K29,"") -> 
A28: =IF(Fahrzeuge!B30>"",Fahrzeuge!A30,A27) -> 0 | B28: =IF(Fahrzeuge!$B30>"",CONCATENATE(LEFT(RIGHT(Fahrzeuge!C30,4),3)," ",Fahrzeuge!B30),"") ->  | C28: =IF(Fahrzeuge!$B30>"",Fahrzeuge!G30,"") ->  | D28: =IF(Fahrzeuge!$B30>"",Fahrzeuge!H30,"") ->  | E28: =IF(Fahrzeuge!$B30>"",Fahrzeuge!K30,"") -> 
A29: =IF(Fahrzeuge!B31>"",Fahrzeuge!A31,A28) -> 0 | B29: =IF(Fahrzeuge!$B31>"",CONCATENATE(LEFT(RIGHT(Fahrzeuge!C31,4),3)," ",Fahrzeuge!B31),"") ->  | C29: =IF(Fahrzeuge!$B31>"",Fahrzeuge!G31,"") ->  | D29: =IF(Fahrzeuge!$B31>"",Fahrzeuge!H31,"") ->  | E29: =IF(Fahrzeuge!$B31>"",Fahrzeuge!K31,"") -> 
A30: =IF(Fahrzeuge!B32>"",Fahrzeuge!A32,A29) -> 0 | B30: =IF(Fahrzeuge!$B32>"",CONCATENATE(LEFT(RIGHT(Fahrzeuge!C32,4),3)," ",Fahrzeuge!B32),"") ->  | C30: =IF(Fahrzeuge!$B32>"",Fahrzeuge!G32,"") ->  | D30: =IF(Fahrzeuge!$B32>"",Fahrzeuge!H32,"") ->  | E30: =IF(Fahrzeuge!$B32>"",Fahrzeuge!K32,"") -> 
A31: =IF('LKW, Busse, Sonderfahrzeuge'!B7>"",A30+1,A30) -> 0 | B31: =IF('LKW, Busse, Sonderfahrzeuge'!$B7>"",'LKW, Busse, Sonderfahrzeuge'!$B7,"") ->  | C31: =IF('LKW, Busse, Sonderfahrzeuge'!$B7>"",'LKW, Busse, Sonderfahrzeuge'!F7,"") ->  | D31: =IF('LKW, Busse, Sonderfahrzeuge'!$B7>"",'LKW, Busse, Sonderfahrzeuge'!G7,"") ->  | E31: =IF('LKW, Busse, Sonderfahrzeuge'!$B7>"",'LKW, Busse, Sonderfahrzeuge'!J7,"") -> 
A32: =IF('LKW, Busse, Sonderfahrzeuge'!B9>"",A31+1,A31) -> 0 | B32: =IF('LKW, Busse, Sonderfahrzeuge'!$B9>"",'LKW, Busse, Sonderfahrzeuge'!$B9,"") ->  | C32: =IF('LKW, Busse, Sonderfahrzeuge'!$B9>"",'LKW, Busse, Sonderfahrzeuge'!F9,"") ->  | D32: =IF('LKW, Busse, Sonderfahrzeuge'!$B9>"",'LKW, Busse, Sonderfahrzeuge'!G9,"") ->  | E32: =IF('LKW, Busse, Sonderfahrzeuge'!$B9>"",'LKW, Busse, Sonderfahrzeuge'!J9,"") -> 
A33: =IF('LKW, Busse, Sonderfahrzeuge'!B11>"",A32+1,A32) -> 0 | B33: =IF('LKW, Busse, Sonderfahrzeuge'!$B11>"",'LKW, Busse, Sonderfahrzeuge'!$B11,"") ->  | C33: =IF('LKW, Busse, Sonderfahrzeuge'!$B11>"",'LKW, Busse, Sonderfahrzeuge'!F11,"") ->  | D33: =IF('LKW, Busse, Sonderfahrzeuge'!$B11>"",'LKW, Busse, Sonderfahrzeuge'!G11,"") ->  | E33: =IF('LKW, Busse, Sonderfahrzeuge'!$B11>"",'LKW, Busse, Sonderfahrzeuge'!J11,"") -> 
A34: =IF('LKW, Busse, Sonderfahrzeuge'!B13>"",A33+1,A33) -> 0 | B34: =IF('LKW, Busse, Sonderfahrzeuge'!$B13>"",'LKW, Busse, Sonderfahrzeuge'!$B13,"") ->  | C34: =IF('LKW, Busse, Sonderfahrzeuge'!$B13>"",'LKW, Busse, Sonderfahrzeuge'!F13,"") ->  | D34: =IF('LKW, Busse, Sonderfahrzeuge'!$B13>"",'LKW, Busse, Sonderfahrzeuge'!G13,"") ->  | E34: =IF('LKW, Busse, Sonderfahrzeuge'!$B13>"",'LKW, Busse, Sonderfahrzeuge'!J13,"") -> 
A35: =IF('LKW, Busse, Sonderfahrzeuge'!B15>"",A34+1,A34) -> 0 | B35: =IF('LKW, Busse, Sonderfahrzeuge'!$B15>"",'LKW, Busse, Sonderfahrzeuge'!$B15,"") ->  | C35: =IF('LKW, Busse, Sonderfahrzeuge'!$B15>"",'LKW, Busse, Sonderfahrzeuge'!F15,"") ->  | D35: =IF('LKW, Busse, Sonderfahrzeuge'!$B15>"",'LKW, Busse, Sonderfahrzeuge'!G15,"") ->  | E35: =IF('LKW, Busse, Sonderfahrzeuge'!$B15>"",'LKW, Busse, Sonderfahrzeuge'!J15,"") -> 
A36: =IF('LKW, Busse, Sonderfahrzeuge'!B17>"",A35+1,A35) -> 0 | B36: =IF('LKW, Busse, Sonderfahrzeuge'!$B17>"",'LKW, Busse, Sonderfahrzeuge'!$B17,"") ->  | C36: =IF('LKW, Busse, Sonderfahrzeuge'!$B17>"",'LKW, Busse, Sonderfahrzeuge'!F17,"") ->  | D36: =IF('LKW, Busse, Sonderfahrzeuge'!$B17>"",'LKW, Busse, Sonderfahrzeuge'!G17,"") ->  | E36: =IF('LKW, Busse, Sonderfahrzeuge'!$B17>"",'LKW, Busse, Sonderfahrzeuge'!J17,"") -> 
A37: =IF('LKW, Busse, Sonderfahrzeuge'!B19>"",A36+1,A36) -> 0 | B37: =IF('LKW, Busse, Sonderfahrzeuge'!$B19>"",'LKW, Busse, Sonderfahrzeuge'!$B19,"") ->  | C37: =IF('LKW, Busse, Sonderfahrzeuge'!$B19>"",'LKW, Busse, Sonderfahrzeuge'!F19,"") ->  | D37: =IF('LKW, Busse, Sonderfahrzeuge'!$B19>"",'LKW, Busse, Sonderfahrzeuge'!G19,"") ->  | E37: =IF('LKW, Busse, Sonderfahrzeuge'!$B19>"",'LKW, Busse, Sonderfahrzeuge'!J19,"") -> 
A38: =IF('LKW, Busse, Sonderfahrzeuge'!B21>"",A37+1,A37) -> 0 | B38: =IF('LKW, Busse, Sonderfahrzeuge'!$B21>"",'LKW, Busse, Sonderfahrzeuge'!$B21,"") ->  | C38: =IF('LKW, Busse, Sonderfahrzeuge'!$B21>"",'LKW, Busse, Sonderfahrzeuge'!F21,"") ->  | D38: =IF('LKW, Busse, Sonderfahrzeuge'!$B21>"",'LKW, Busse, Sonderfahrzeuge'!G21,"") ->  | E38: =IF('LKW, Busse, Sonderfahrzeuge'!$B21>"",'LKW, Busse, Sonderfahrzeuge'!J21,"") -> 
A39: =IF('LKW, Busse, Sonderfahrzeuge'!B23>"",A38+1,A38) -> 0 | B39: =IF('LKW, Busse, Sonderfahrzeuge'!$B23>"",'LKW, Busse, Sonderfahrzeuge'!$B23,"") ->  | C39: =IF('LKW, Busse, Sonderfahrzeuge'!$B23>"",'LKW, Busse, Sonderfahrzeuge'!F23,"") ->  | D39: =IF('LKW, Busse, Sonderfahrzeuge'!$B23>"",'LKW, Busse, Sonderfahrzeuge'!G23,"") ->  | E39: =IF('LKW, Busse, Sonderfahrzeuge'!$B23>"",'LKW, Busse, Sonderfahrzeuge'!J23,"") -> 
A40: =IF('LKW, Busse, Sonderfahrzeuge'!B25>"",A39+1,A39) -> 0 | B40: =IF('LKW, Busse, Sonderfahrzeuge'!$B25>"",'LKW, Busse, Sonderfahrzeuge'!$B25,"") ->  | C40: =IF('LKW, Busse, Sonderfahrzeuge'!$B25>"",'LKW, Busse, Sonderfahrzeuge'!F25,"") ->  | D40: =IF('LKW, Busse, Sonderfahrzeuge'!$B25>"",'LKW, Busse, Sonderfahrzeuge'!G25,"") ->  | E40: =IF('LKW, Busse, Sonderfahrzeuge'!$B25>"",'LKW, Busse, Sonderfahrzeuge'!J25,"") -> 
A41: =IF(Ladeinfrastruktur!$B6>"",A40+1,A40) -> 0 | B41: =IF(Ladeinfrastruktur!$B6>"",Ladeinfrastruktur!B6,"") ->  | C41: =IF($B41>"",Ladeinfrastruktur!C6,"") ->  | D41: =IF($B41>"",Ladeinfrastruktur!D6,"") ->  | E41: =IF($B41>"",Ladeinfrastruktur!E6,"") -> 
A42: =IF(Ladeinfrastruktur!$B8>"",A41+1,A41) -> 0 | B42: =IF(Ladeinfrastruktur!$B8>"",Ladeinfrastruktur!B8,"") ->  | C42: =IF($B42>"",Ladeinfrastruktur!C8,"") ->  | D42: =IF($B42>"",Ladeinfrastruktur!D8,"") ->  | E42: =IF($B42>"",Ladeinfrastruktur!E8,"") -> 
A43: =IF(Ladeinfrastruktur!$B10>"",A42+1,A42) -> 0 | B43: =IF(Ladeinfrastruktur!$B10>"",Ladeinfrastruktur!B10,"") ->  | C43: =IF($B43>"",Ladeinfrastruktur!C10,"") ->  | D43: =IF($B43>"",Ladeinfrastruktur!D10,"") ->  | E43: =IF($B43>"",Ladeinfrastruktur!E10,"") -> 
A44: =IF(Ladeinfrastruktur!$B12>"",A43+1,A43) -> 0 | B44: =IF(Ladeinfrastruktur!$B12>"",Ladeinfrastruktur!B12,"") ->  | C44: =IF($B44>"",Ladeinfrastruktur!C12,"") ->  | D44: =IF($B44>"",Ladeinfrastruktur!D12,"") ->  | E44: =IF($B44>"",Ladeinfrastruktur!E12,"") -> 
A45: =IF(Ladeinfrastruktur!$B14>"",A44+1,A44) -> 0 | B45: =IF(Ladeinfrastruktur!$B14>"",Ladeinfrastruktur!B14,"") ->  | C45: =IF($B45>"",Ladeinfrastruktur!C14,"") ->  | D45: =IF($B45>"",Ladeinfrastruktur!D14,"") ->  | E45: =IF($B45>"",Ladeinfrastruktur!E14,"") -> 
A46: =IF(Ladeinfrastruktur!$B16>"",A45+1,A45) -> 0 | B46: =IF(Ladeinfrastruktur!$B16>"",Ladeinfrastruktur!B16,"") ->  | C46: =IF($B46>"",Ladeinfrastruktur!C16,"") ->  | D46: =IF($B46>"",Ladeinfrastruktur!D16,"") ->  | E46: =IF($B46>"",Ladeinfrastruktur!E16,"") -> 
A47: =IF(Ladeinfrastruktur!$B18>"",A46+1,A46) -> 0 | B47: =IF(Ladeinfrastruktur!$B18>"",Ladeinfrastruktur!B18,"") ->  | C47: =IF($B47>"",Ladeinfrastruktur!C18,"") ->  | D47: =IF($B47>"",Ladeinfrastruktur!D18,"") ->  | E47: =IF($B47>"",Ladeinfrastruktur!E18,"") -> 
A48: =IF(Ladeinfrastruktur!$B20>"",A47+1,A47) -> 0 | B48: =IF(Ladeinfrastruktur!$B20>"",Ladeinfrastruktur!B20,"") ->  | C48: =IF($B48>"",Ladeinfrastruktur!C20,"") ->  | D48: =IF($B48>"",Ladeinfrastruktur!D20,"") ->  | E48: =IF($B48>"",Ladeinfrastruktur!E20,"") -> 
A49: =IF(Ladeinfrastruktur!$B22>"",A48+1,A48) -> 0 | B49: =IF(Ladeinfrastruktur!$B22>"",Ladeinfrastruktur!B22,"") ->  | C49: =IF($B49>"",Ladeinfrastruktur!C22,"") ->  | D49: =IF($B49>"",Ladeinfrastruktur!D22,"") ->  | E49: =IF($B49>"",Ladeinfrastruktur!E22,"") -> 
A50: =IF(Ladeinfrastruktur!$B24>"",A49+1,A49) -> 0 | B50: =IF(Ladeinfrastruktur!$B24>"",Ladeinfrastruktur!B24,"") ->  | C50: =IF($B50>"",Ladeinfrastruktur!C24,"") ->  | D50: =IF($B50>"",Ladeinfrastruktur!D24,"") ->  | E50: =IF($B50>"",Ladeinfrastruktur!E24,"") -> 
A51: =IF('spezielle Ladeinfrastruktur'!$B7>"",A50+1,A50) -> 0 | B51: =IF('spezielle Ladeinfrastruktur'!$B7>"",'spezielle Ladeinfrastruktur'!B7,"") ->  | C51: =IF('spezielle Ladeinfrastruktur'!$B7>"",'spezielle Ladeinfrastruktur'!C7,"") ->  | D51: =IF('spezielle Ladeinfrastruktur'!$B7>"",'spezielle Ladeinfrastruktur'!D7,"") ->  | E51: =IF('spezielle Ladeinfrastruktur'!$B7>"",'spezielle Ladeinfrastruktur'!E7,"") -> 
A52: =IF('spezielle Ladeinfrastruktur'!$B9>"",A51+1,A51) -> 0 | B52: =IF('spezielle Ladeinfrastruktur'!$B9>"",'spezielle Ladeinfrastruktur'!B9,"") ->  | C52: =IF('spezielle Ladeinfrastruktur'!$B9>"",'spezielle Ladeinfrastruktur'!C9,"") ->  | D52: =IF('spezielle Ladeinfrastruktur'!$B9>"",'spezielle Ladeinfrastruktur'!D9,"") ->  | E52: =IF('spezielle Ladeinfrastruktur'!$B9>"",'spezielle Ladeinfrastruktur'!E9,"") -> 
A53: =IF('spezielle Ladeinfrastruktur'!$B11>"",A52+1,A52) -> 0 | B53: =IF('spezielle Ladeinfrastruktur'!$B11>"",'spezielle Ladeinfrastruktur'!B11,"") ->  | C53: =IF('spezielle Ladeinfrastruktur'!$B11>"",'spezielle Ladeinfrastruktur'!C11,"") ->  | D53: =IF('spezielle Ladeinfrastruktur'!$B11>"",'spezielle Ladeinfrastruktur'!D11,"") ->  | E53: =IF('spezielle Ladeinfrastruktur'!$B11>"",'spezielle Ladeinfrastruktur'!E11,"") -> 
A54: =IF('spezielle Ladeinfrastruktur'!$B13>"",A53+1,A53) -> 0 | B54: =IF('spezielle Ladeinfrastruktur'!$B13>"",'spezielle Ladeinfrastruktur'!B13,"") ->  | C54: =IF('spezielle Ladeinfrastruktur'!$B13>"",'spezielle Ladeinfrastruktur'!C13,"") ->  | D54: =IF('spezielle Ladeinfrastruktur'!$B13>"",'spezielle Ladeinfrastruktur'!D13,"") ->  | E54: =IF('spezielle Ladeinfrastruktur'!$B13>"",'spezielle Ladeinfrastruktur'!E13,"") -> 
A55: =IF('spezielle Ladeinfrastruktur'!$B15>"",A54+1,A54) -> 0 | B55: =IF('spezielle Ladeinfrastruktur'!$B15>"",'spezielle Ladeinfrastruktur'!B15,"") ->  | C55: =IF('spezielle Ladeinfrastruktur'!$B15>"",'spezielle Ladeinfrastruktur'!C15,"") ->  | D55: =IF('spezielle Ladeinfrastruktur'!$B15>"",'spezielle Ladeinfrastruktur'!D15,"") ->  | E55: =IF('spezielle Ladeinfrastruktur'!$B15>"",'spezielle Ladeinfrastruktur'!E15,"") -> 
A56: =IF('spezielle Ladeinfrastruktur'!$B17>"",A55+1,A55) -> 0 | B56: =IF('spezielle Ladeinfrastruktur'!$B17>"",'spezielle Ladeinfrastruktur'!B17,"") ->  | C56: =IF('spezielle Ladeinfrastruktur'!$B17>"",'spezielle Ladeinfrastruktur'!C17,"") ->  | D56: =IF('spezielle Ladeinfrastruktur'!$B17>"",'spezielle Ladeinfrastruktur'!D17,"") ->  | E56: =IF('spezielle Ladeinfrastruktur'!$B17>"",'spezielle Ladeinfrastruktur'!E17,"") -> 
A57: =IF('spezielle Ladeinfrastruktur'!$B19>"",A56+1,A56) -> 0 | B57: =IF('spezielle Ladeinfrastruktur'!$B19>"",'spezielle Ladeinfrastruktur'!B19,"") ->  | C57: =IF('spezielle Ladeinfrastruktur'!$B19>"",'spezielle Ladeinfrastruktur'!C19,"") ->  | D57: =IF('spezielle Ladeinfrastruktur'!$B19>"",'spezielle Ladeinfrastruktur'!D19,"") ->  | E57: =IF('spezielle Ladeinfrastruktur'!$B19>"",'spezielle Ladeinfrastruktur'!E19,"") -> 
A58: =IF('spezielle Ladeinfrastruktur'!$B21>"",A57+1,A57) -> 0 | B58: =IF('spezielle Ladeinfrastruktur'!$B21>"",'spezielle Ladeinfrastruktur'!B21,"") ->  | C58: =IF('spezielle Ladeinfrastruktur'!$B21>"",'spezielle Ladeinfrastruktur'!C21,"") ->  | D58: =IF('spezielle Ladeinfrastruktur'!$B21>"",'spezielle Ladeinfrastruktur'!D21,"") ->  | E58: =IF('spezielle Ladeinfrastruktur'!$B21>"",'spezielle Ladeinfrastruktur'!E21,"") -> 
A59: =IF('spezielle Ladeinfrastruktur'!$B23>"",A58+1,A58) -> 0 | B59: =IF('spezielle Ladeinfrastruktur'!$B23>"",'spezielle Ladeinfrastruktur'!B23,"") ->  | C59: =IF('spezielle Ladeinfrastruktur'!$B23>"",'spezielle Ladeinfrastruktur'!C23,"") ->  | D59: =IF('spezielle Ladeinfrastruktur'!$B23>"",'spezielle Ladeinfrastruktur'!D23,"") ->  | E59: =IF('spezielle Ladeinfrastruktur'!$B23>"",'spezielle Ladeinfrastruktur'!E23,"") -> 
A60: =IF('spezielle Ladeinfrastruktur'!$B25>"",A59+1,A59) -> 0 | B60: =IF('spezielle Ladeinfrastruktur'!$B25>"",'spezielle Ladeinfrastruktur'!B25,"") ->  | C60: =IF('spezielle Ladeinfrastruktur'!$B25>"",'spezielle Ladeinfrastruktur'!C25,"") ->  | D60: =IF('spezielle Ladeinfrastruktur'!$B25>"",'spezielle Ladeinfrastruktur'!D25,"") ->  | E60: =IF('spezielle Ladeinfrastruktur'!$B25>"",'spezielle Ladeinfrastruktur'!E25,"") -> 
D61: Summe: | E61: =ROUND(SUM(E11:E60),0) -> 0
